{"text_format":"1","workbook":"xlsx","n_sheets":2,"sheets":["MV","Source"],"not_rendered":{"charts":0,"images":0,"macros":1,"external_links":0,"defined_names":0,"comments":0,"pivot_tables":0},"unopened":[],"bounds":{"document_bytes":16777216,"sheet_cells":100000,"rows_first":2000,"rows_last":500,"rows_between":2000,"halvings":0,"cell_chars":16384,"cell_head_chars":4096},"cells_cut":0,"cells_raw":0,"read":"whole","date_system":"1900"}

{"sheet":"MV","index":0,"n_rows":399,"n_cols":9,"rows_kept":399,"cut":false,"hidden":false,"merged":[[398,4,398,8],[395,4,395,8],[342,4,342,7],[196,4,196,7],[160,4,160,7],[230,4,230,7],[391,4,391,7],[390,4,390,7],[307,4,307,7],[394,4,394,8],[397,4,397,8],[93,4,93,7],[264,4,264,7],[104,4,104,7],[41,4,41,7],[68,4,68,7],[121,4,121,7]]}
[null,null,null,null,"Vardas Pavardė [Tab.Nr.]\nName Surname"]
[null,null,null,null,"Anglų filologijos katedra"]
[]
[null,null,null,null,"Metai "]
[null,null,null,null,"Mokslinė veikla\nResearch Activity"]
[null,null,null,null,"Mokslinės konferencijos ir meno renginiai, mokslo populiarinimas\nScientific conferences and arts events, science popularisation","Mat. vnt.\nMeasurement unit","Kiekis\nQuantity","Skiriami taškai\nPoints","Iš viso:\nTotal:"]
[null,null,null,null,"Dalyvavimas\nParticipation"]
[{"$f":"TRIM(MID($E$1,FIND(\"[\",$E$1,1)+1,FIND(\"]\",$E$1,1)-FIND(\"[\",$E$1,1)-1))","v":"Tab.Nr."},{"$f":"VLOOKUP($E$2,Source!$A$5:$B$78,2,FALSE)","v":"lll030900000"},{"$f":"$E$3","v":0},4354,"Padaryti kviestiniai pranešimai tarptautiniuose mokslo renginiuose\nInvited presentations made at international science events","vnt.\nunit",0,25,{"$f":"G8*H8","v":0}]
[{"$f":"TRIM(MID($E$1,FIND(\"[\",$E$1,1)+1,FIND(\"]\",$E$1,1)-FIND(\"[\",$E$1,1)-1))","v":"Tab.Nr."},{"$f":"VLOOKUP($E$2,Source!$A$5:$B$78,2,FALSE)","v":"lll030900000"},{"$f":"$E$3","v":0},4355]
[{"$f":"TRIM(MID($E$1,FIND(\"[\",$E$1,1)+1,FIND(\"]\",$E$1,1)-FIND(\"[\",$E$1,1)-1))","v":"Tab.Nr."},{"$f":"VLOOKUP($E$2,Source!$A$5:$B$78,2,FALSE)","v":"lll030900000"},{"$f":"$E$3","v":0},4356,"Padaryti pranešimai tarptautiniuose mokslo renginiuose\nPresentations made at international science events","vnt.\nunit",0,15,{"$f":"G10*H10","v":0}]
["Tab.Nr.",{"$f":"VLOOKUP($E$2,Source!$A$5:$B$78,2,FALSE)","v":"lll030900000"},0,4357]
["Tab.Nr.",{"$f":"VLOOKUP($E$2,Source!$A$5:$B$78,2,FALSE)","v":"lll030900000"},0,4358,"Padaryti kviestiniai pranešimai respublikiniuose mokslo renginiuose\nInvited presentations made at national science events","vnt.\nunit",0,15,{"$f":"G12*H12","v":0}]
["Tab.Nr.",{"$f":"VLOOKUP($E$2,Source!$A$5:$B$78,2,FALSE)","v":"lll030900000"},0,4359]
["Tab.Nr.",{"$f":"VLOOKUP($E$2,Source!$A$5:$B$78,2,FALSE)","v":"lll030900000"},0,4360,"Padaryti pranešimai kituose mokslo renginiuose \nPresentations made at other science events ","vnt.\nunit",0,5,{"$f":"G14*H14","v":0}]
["Tab.Nr.",{"$f":"VLOOKUP($E$2,Source!$A$5:$B$78,2,FALSE)","v":"lll030900000"},0,4361]
[null,null,null,null,"Organizavimas\nOrganizing"]
["Tab.Nr.",{"$f":"VLOOKUP($E$2,Source!$A$5:$B$78,2,FALSE)","v":"lll030900000"},0,4363,"Tarptautinio mokslo ir meno renginio organizacinio arba mokslo komiteto pirmininkas\nChairperson of the organising or scientific committee of international science and arts event","vnt.\nunit",0,30,{"$f":"G17*H17","v":0}]
["Tab.Nr.",{"$f":"VLOOKUP($E$2,Source!$A$5:$B$78,2,FALSE)","v":"lll030900000"},0,4364]
["Tab.Nr.",{"$f":"VLOOKUP($E$2,Source!$A$5:$B$78,2,FALSE)","v":"lll030900000"},0,4365,"Tarptautinio mokslo ir meno renginio organizacinio arba mokslo komiteto narys\nMember of the organising or scientific committee of international science and arts event","vnt.\nunit",0,10,{"$f":"G19*H19","v":0}]
["Tab.Nr.",{"$f":"VLOOKUP($E$2,Source!$A$5:$B$78,2,FALSE)","v":"lll030900000"},0,4366]
["Tab.Nr.",{"$f":"VLOOKUP($E$2,Source!$A$5:$B$78,2,FALSE)","v":"lll030900000"},0,4367,"Kitų mokslo ir meno renginių organizacinio komiteto pirmininkas\nChairperson of the organising committee of other science and arts events","vnt.\nunit",0,10,0]
["Tab.Nr.",{"$f":"VLOOKUP($E$2,Source!$A$5:$B$78,2,FALSE)","v":"lll030900000"},0,4368]
["Tab.Nr.",{"$f":"VLOOKUP($E$2,Source!$A$5:$B$78,2,FALSE)","v":"lll030900000"},0,4369,"Kitų mokslo ir meno  renginių organizacinio komiteto narys\nMember of the organising committee of other science and arts events","vnt.\nunit",0,5,0]
["Tab.Nr.",{"$f":"VLOOKUP($E$2,Source!$A$5:$B$78,2,FALSE)","v":"lll030900000"},0,4370]
[null,null,null,null,"Populiarinimas\nPopularisation"]
["Tab.Nr.",{"$f":"VLOOKUP($E$2,Source!$A$5:$B$78,2,FALSE)","v":"lll030900000"},0,4383,"Paskaitų, konsultacijų, konkursų moksleiviams vedimas\nDelivering lectures, consultations and competitions for schoolchildren","vnt.\nunit",0,5,{"$f":"G26*H26","v":0}]
["Tab.Nr.",{"$f":"VLOOKUP($E$2,Source!$A$5:$B$78,2,FALSE)","v":"lll030900000"},0,4384]
["Tab.Nr.",{"$f":"VLOOKUP($E$2,Source!$A$5:$B$78,2,FALSE)","v":"lll030900000"},0,4387,"Renginių, konkursų, viktorinų moksleiviams organizavimas\nOrganising events, competitions and contests for schoolchildren","vnt.\nunit",0,8,{"$f":"G28*H28","v":0}]
["Tab.Nr.",{"$f":"VLOOKUP($E$2,Source!$A$5:$B$78,2,FALSE)","v":"lll030900000"},0,4388]
["Tab.Nr.",{"$f":"VLOOKUP($E$2,Source!$A$5:$B$78,2,FALSE)","v":"lll030900000"},0,4389,"Renginių su universiteto absolventais, darbdaviais organizavimas/vedimas\nOrganising/conducting events with university alumni and employers","vnt.\nunit",0,8,{"$f":"G30*H30","v":0}]
["Tab.Nr.",{"$f":"VLOOKUP($E$2,Source!$A$5:$B$78,2,FALSE)","v":"lll030900000"},0,4390]
["Tab.Nr.",{"$f":"VLOOKUP($E$2,Source!$A$5:$B$78,2,FALSE)","v":"lll030900000"},0,4391,"Viešos paskaitos visuomenei, diskusijų, seminarų vedimas\nDelivering public lectures, discussions, seminars for the community","vnt.\nunit",0,5,{"$f":"G32*H32","v":0}]
["Tab.Nr.",{"$f":"VLOOKUP($E$2,Source!$A$5:$B$78,2,FALSE)","v":"lll030900000"},0,4392]
["Tab.Nr.",{"$f":"VLOOKUP($E$2,Source!$A$5:$B$78,2,FALSE)","v":"lll030900000"},0,4393,"Meno, mokslo populiarinimo knygos\nScience and arts popularisation books","aut. l.\nquire",0,3,{"$f":"G34*H34","v":0}]
["Tab.Nr.",{"$f":"VLOOKUP($E$2,Source!$A$5:$B$78,2,FALSE)","v":"lll030900000"},0,4394]
["Tab.Nr.",{"$f":"VLOOKUP($E$2,Source!$A$5:$B$78,2,FALSE)","v":"lll030900000"},0,4395,"Mokslo populiarinimo filmai\nScience popularisation films","vnt.\nunit",0,5,{"$f":"G36*H36","v":0}]
["Tab.Nr.",{"$f":"VLOOKUP($E$2,Source!$A$5:$B$78,2,FALSE)","v":"lll030900000"},0,4396]
["Tab.Nr.",{"$f":"VLOOKUP($E$2,Source!$A$5:$B$78,2,FALSE)","v":"lll030900000"},0,4397,"Mokslo populiarinimo straipsniai, parodų katalogų straipsniai\nScience popularisation articles, articles of exhibition catalogues ","vnt.\nunit",0,4,{"$f":"G38*H38","v":0}]
["Tab.Nr.",{"$f":"VLOOKUP($E$2,Source!$A$5:$B$78,2,FALSE)","v":"lll030900000"},0,4398]
["Tab.Nr.",{"$f":"VLOOKUP($E$2,Source!$A$5:$B$78,2,FALSE)","v":"lll030900000"},0,4399,"Dalyvavimas televizijos ir radijo laidose, susitikimai su visuomene\nParticipation in TV and radio programmes, and meetings with the community","vnt.\nunit",0,2,{"$f":"G40*H40","v":0}]
["Tab.Nr.",{"$f":"VLOOKUP($E$2,Source!$A$5:$B$78,2,FALSE)","v":"lll030900000"},0,4400]
[null,null,null,null,"Iš viso:\nTotal:",null,null,null,{"$f":"I8+I10+I12+I14+I17+I19+I21+I23+I26+I28+I30+I32+I34+I36+I38+I40","v":0}]
[]
[null,null,null,null,"Leidybinis darbas, vertinimai\nPublication and translation work","Mat. vnt.\nMeasurement unit","Kiekis\nQuantity","Skiriami taškai\nPoints","Iš viso:\nTotal:"]
["Tab.Nr.",{"$f":"VLOOKUP($E$2,Source!$A$5:$B$78,2,FALSE)","v":"lll030900000"},0,4408,"Mokslinių žurnalų, registruotų Mokslinės infomacijos instituto (ISI) duomenų bazėse, redakcinės kolegijos pirmininkas, vyr. redaktorius\nChairperson, editor-in-chief of editorial board of scientific journals, registered in the Institute for Scientific Information (ISI) databases ","vnt.\nunit",0,30,{"$f":"G45*H45","v":0}]
["Tab.Nr.",{"$f":"VLOOKUP($E$2,Source!$A$5:$B$78,2,FALSE)","v":"lll030900000"},0,4409]
["Tab.Nr.",{"$f":"VLOOKUP($E$2,Source!$A$5:$B$78,2,FALSE)","v":"lll030900000"},0,4410,"Mokslinių žurnalų, registruotų Mokslinės infomacijos instituto (ISI) duomenų bazėse, redakcinės kolegijos atsakingas redaktorius, pirmininko pavaduotojas\nVice-chairperson, managing editor of editorial board of scientific journals, registered in the Institute for Scientific Information (ISI) databases ","vnt.\nunit",0,15,{"$f":"G47*H47","v":0}]
["Tab.Nr.",{"$f":"VLOOKUP($E$2,Source!$A$5:$B$78,2,FALSE)","v":"lll030900000"},0,4411]
["Tab.Nr.",{"$f":"VLOOKUP($E$2,Source!$A$5:$B$78,2,FALSE)","v":"lll030900000"},0,4412,"Mokslinių žurnalų, registruotų Mokslinės infomacijos instituto (ISI) duomenų bazėse, redakcinės kolegijos narys\nMember of editorial board of scientific journals, registered in the Institute for Scientific Information (ISI) databases ","vnt.\nunit",0,10,{"$f":"G49*H49","v":0}]
["Tab.Nr.",{"$f":"VLOOKUP($E$2,Source!$A$5:$B$78,2,FALSE)","v":"lll030900000"},0,4413]
["Tab.Nr.",{"$f":"VLOOKUP($E$2,Source!$A$5:$B$78,2,FALSE)","v":"lll030900000"},0,4414,"Mokslinių žurnalų, registruotų kitose tarptautinėse duomenų bazėse, redakcinės kolegijos pirmininkas, vyr. redaktorius\nChairperson, editor-in-chief of editorial board of scientific journals, registered in other international databases ","vnt.\nunit",0,20,{"$f":"G51*H51","v":0}]
["Tab.Nr.",{"$f":"VLOOKUP($E$2,Source!$A$5:$B$78,2,FALSE)","v":"lll030900000"},0,4415]
["Tab.Nr.",{"$f":"VLOOKUP($E$2,Source!$A$5:$B$78,2,FALSE)","v":"lll030900000"},0,4416,"Mokslinių žurnalų, registruotų kitose tarptautinėse duomenų bazėse, redakcinės kolegijos atsakingas redaktorius, pirmininko pavaduotojas\nVice-chairperson, managing editor of editorial board of scientific journals, registered in other international databases ","vnt.\nunit",0,12,{"$f":"G53*H53","v":0}]
["Tab.Nr.",{"$f":"VLOOKUP($E$2,Source!$A$5:$B$78,2,FALSE)","v":"lll030900000"},0,4417]
["Tab.Nr.",{"$f":"VLOOKUP($E$2,Source!$A$5:$B$78,2,FALSE)","v":"lll030900000"},0,4418,"Mokslinių žurnalų, registruotų kitose tarptautinėse duomenų bazėse, redakcinės kolegijos narys\nMember of editorial board of scientific journals, registered in other international databases","vnt.\nunit",0,8,{"$f":"G55*H55","v":0}]
["Tab.Nr.",{"$f":"VLOOKUP($E$2,Source!$A$5:$B$78,2,FALSE)","v":"lll030900000"},0,4419]
["Tab.Nr.",{"$f":"VLOOKUP($E$2,Source!$A$5:$B$78,2,FALSE)","v":"lll030900000"},0,4420,"Meno kūrinių albumo, katalogo sudarytojas\nCompiler of album or catalogue of exhibited artwork","vnt.\nunit",0,20,{"$f":"G57*H57","v":0}]
["Tab.Nr.",{"$f":"VLOOKUP($E$2,Source!$A$5:$B$78,2,FALSE)","v":"lll030900000"},0,4421]
["Tab.Nr.",{"$f":"VLOOKUP($E$2,Source!$A$5:$B$78,2,FALSE)","v":"lll030900000"},0,4422,"Kitų mokslinių ir mokslo populiarinimo žurnalų redakcinės kolegijos pirmininkas, vyr. redaktorius\nChairman, editor-in-chief of  editorial board of other scientific and science popularisation journals","vnt.\nunit",0,15,{"$f":"G59*H59","v":0}]
["Tab.Nr.",{"$f":"VLOOKUP($E$2,Source!$A$5:$B$78,2,FALSE)","v":"lll030900000"},0,4423]
["Tab.Nr.",{"$f":"VLOOKUP($E$2,Source!$A$5:$B$78,2,FALSE)","v":"lll030900000"},0,4424,"Kitų mokslinių ir mokslo populiarinimo žurnalų redakcinės kolegijos narys/vyr. redaktoriaus pavaduotojas/atsakingas redaktorius\nMember/deputy editor/managing editor of editorial board of other scientific and science popularisation journals ","vnt.\nunit",0,5,{"$f":"G61*H61","v":0}]
["Tab.Nr.",{"$f":"VLOOKUP($E$2,Source!$A$5:$B$78,2,FALSE)","v":"lll030900000"},0,4425]
["Tab.Nr.",{"$f":"VLOOKUP($E$2,Source!$A$5:$B$78,2,FALSE)","v":"lll030900000"},0,4428,"Projektų aprašų vertimas\nTranslation of project descriptions","aut. l.\nquire",0,5,{"$f":"G63*H63","v":0}]
["Tab.Nr.",{"$f":"VLOOKUP($E$2,Source!$A$5:$B$78,2,FALSE)","v":"lll030900000"},0,4429]
["Tab.Nr.",{"$f":"VLOOKUP($E$2,Source!$A$5:$B$78,2,FALSE)","v":"lll030900000"},0,4430,"Studijų programų savianalizės vertimas\nTranslation of study programmes self-assessments","aut. l.\nquire",0,4,{"$f":"G65*H65","v":0}]
["Tab.Nr.",{"$f":"VLOOKUP($E$2,Source!$A$5:$B$78,2,FALSE)","v":"lll030900000"},0,4431]
["Tab.Nr.",{"$f":"VLOOKUP($E$2,Source!$A$5:$B$78,2,FALSE)","v":"lll030900000"},0,4432,"Mokslinių straipsnių santraukų, universiteto laiškų, dokumentų vertimas\nTranslation of abstracts of scientific articles, university letters and documents","vnt.\nunit",0,1,{"$f":"G67*H67","v":0}]
["Tab.Nr.",{"$f":"VLOOKUP($E$2,Source!$A$5:$B$78,2,FALSE)","v":"lll030900000"},0,4433]
[null,null,null,null,"Iš viso:\nTotal:",null,null,null,{"$f":"I45+I47+I49+I51+I53+I55+I57+I59+I61+I63+I65+I67","v":0}]
[]
[null,null,null,null,"Visuomeninė ir meninė veikla\nPublic and artistic activity ","Mat. vnt.\nMeasurement unit","Kiekis\nQuantity","Skiriami taškai\nPoints","Iš viso:\nTotal:"]
["Tab.Nr.",{"$f":"VLOOKUP($E$2,Source!$A$5:$B$78,2,FALSE)","v":"lll030900000"},0,4435,"Autorinės meno kūrinių parodos, filmo užsienyje autorius; autorinio meno kūrinio (spektaklio, kino filmo, muzikinės kompozicijos) viešas demonstravimas užsienyje\nAuthor of personal exhibition of artwork or film abroad; public  demonstration of personal artwork (play, film, musical composition) abroad","vnt.\nunit",0,30,{"$f":"G72*H72","v":0}]
["Tab.Nr.",{"$f":"VLOOKUP($E$2,Source!$A$5:$B$78,2,FALSE)","v":"lll030900000"},0,4436]
["Tab.Nr.",{"$f":"VLOOKUP($E$2,Source!$A$5:$B$78,2,FALSE)","v":"lll030900000"},0,4437,"Autorinės meno kūrinių parodos, filmo Lietuvoje autorius; autorinio meno kūrinio (spektaklio, kino filmo, muzikinės kompozicijos) viešas demonstravimas Lietuvoje\nAuthor of personal exhibition of artwork or film in Lithuania; public  demonstration of personal artwork (play, film, musical composition) in Lithuania","vnt.\nunit",0,10,{"$f":"G74*H74","v":0}]
["Tab.Nr.",{"$f":"VLOOKUP($E$2,Source!$A$5:$B$78,2,FALSE)","v":"lll030900000"},0,4438]
["Tab.Nr.",{"$f":"VLOOKUP($E$2,Source!$A$5:$B$78,2,FALSE)","v":"lll030900000"},0,4439,"Tarptautinių festivalių, forumų, programų komisijos/komiteto pirmininkas\nCommittee chairperson of international festivals, forums, programmes ","vnt.\nunit",0,20,{"$f":"G76*H76","v":0}]
["Tab.Nr.",{"$f":"VLOOKUP($E$2,Source!$A$5:$B$78,2,FALSE)","v":"lll030900000"},0,4440]
["Tab.Nr.",{"$f":"VLOOKUP($E$2,Source!$A$5:$B$78,2,FALSE)","v":"lll030900000"},0,4441,"Tarptautinių festivalių, forumų, programų komisijos/komiteto narys\nCommittee member of international festivals, forums, programmes","vnt.\nunit",0,10,{"$f":"G78*H78","v":0}]
["Tab.Nr.",{"$f":"VLOOKUP($E$2,Source!$A$5:$B$78,2,FALSE)","v":"lll030900000"},0,4442]
["Tab.Nr.",{"$f":"VLOOKUP($E$2,Source!$A$5:$B$78,2,FALSE)","v":"lll030900000"},0,4443,"Kitų festivalių, forumų, programų komisijos/komiteto pirmininkas\nCommittee chairperson of other festivals, forums, programmes ","vnt.\nunit",0,10,{"$f":"G80*H80","v":0}]
[{"$f":"TRIM(MID($E$1,FIND(\"[\",$E$1,1)+1,FIND(\"]\",$E$1,1)-FIND(\"[\",$E$1,1)-1))","v":"Tab.Nr."},{"$f":"VLOOKUP($E$2,Source!$A$5:$B$78,2,FALSE)","v":"lll030900000"},{"$f":"$E$3","v":0},4444]
["Tab.Nr.",{"$f":"VLOOKUP($E$2,Source!$A$5:$B$78,2,FALSE)","v":"lll030900000"},0,4445,"Kitų festivalių, forumų, programų komisijos/komiteto narys\nCommittee member of other festivals, forums, programmes ","vnt.\nunit",0,5,{"$f":"G82*H82","v":0}]
["Tab.Nr.",{"$f":"VLOOKUP($E$2,Source!$A$5:$B$78,2,FALSE)","v":"lll030900000"},0,4446]
["Tab.Nr.",{"$f":"VLOOKUP($E$2,Source!$A$5:$B$78,2,FALSE)","v":"lll030900000"},0,4449,"Grupinės meno kūrinių parodos užsienyje dalyvis; kitų parodų (gėlių, knygų, nuotraukų ir  kt) organizavimas\nParticipant of group exhibition of artwork abroad; organising other exhibitions (of flowers, books, photos, etc.) abroad","vnt.\nunit",0,10,{"$f":"G84*H84","v":0}]
["Tab.Nr.",{"$f":"VLOOKUP($E$2,Source!$A$5:$B$78,2,FALSE)","v":"lll030900000"},0,4450]
["Tab.Nr.",{"$f":"VLOOKUP($E$2,Source!$A$5:$B$78,2,FALSE)","v":"lll030900000"},0,4451,"Grupinės meno kūrinių parodos Lietuvoje dalyvis; kitų parodų (gėlių, knygų, nuotraukų ir  kt) komisijos vertinimo narys\nParticipant of group exhibition of artwork in Lithuania; organising other exhibitions (of flowers, books, photos etc.) in Lithuania","vnt.\nunit",0,5,{"$f":"G86*H86","v":0}]
["Tab.Nr.",{"$f":"VLOOKUP($E$2,Source!$A$5:$B$78,2,FALSE)","v":"lll030900000"},0,4452]
["Tab.Nr.",{"$f":"VLOOKUP($E$2,Source!$A$5:$B$78,2,FALSE)","v":"lll030900000"},0,4453,"Dalyvavimas savanoriškoje vyriausybių, visuomeninių organizacijų veiklose; formalizuotas asmenų konsultavimas\nParticipation in voluntary activities of government and public organizations; formalised personal counselling ","vnt.\nunit",0,2,{"$f":"G88*H88","v":0}]
["Tab.Nr.",{"$f":"VLOOKUP($E$2,Source!$A$5:$B$78,2,FALSE)","v":"lll030900000"},0,4454]
["Tab.Nr.",{"$f":"VLOOKUP($E$2,Source!$A$5:$B$78,2,FALSE)","v":"lll030900000"},0,4455,"Padalinių internetinių svetainių administravimas\nAdministration of websites of university structural units","vnt.\nunit",0,10,{"$f":"G90*H90","v":0}]
["Tab.Nr.",{"$f":"VLOOKUP($E$2,Source!$A$5:$B$78,2,FALSE)","v":"lll030900000"},0,4456]
["Tab.Nr.",{"$f":"VLOOKUP($E$2,Source!$A$5:$B$78,2,FALSE)","v":"lll030900000"},0,4457,"Studentų konsultavimas psichologijos klinikoje, teisės mokslininkų būrelyje\nStudent counselling in psychology clinic, in law scientists club","vnt.\nunit",0,2,{"$f":"G92*H92","v":0}]
["Tab.Nr.",{"$f":"VLOOKUP($E$2,Source!$A$5:$B$78,2,FALSE)","v":"lll030900000"},0,4458]
[null,null,null,null,"Iš viso:\nTotal:",null,null,null,{"$f":"I72+I74+I76+I78+I80+I82+I84+I86+I88+I90+I92","v":0}]
[]
[null,null,null,null,"Studentų mokslinės veiklos organizavimas\nOrganising students research activities","Mat. vnt.\nMeasurement unit","Kiekis\nQuantity","Skiriami taškai\nPoints","Iš viso:\nTotal:"]
["Tab.Nr.",{"$f":"VLOOKUP($E$2,Source!$A$5:$B$78,2,FALSE)","v":"lll030900000"},0,4460,"Tarptautinių ir Lietuvos studentų meno, mokslinių renginių organizacinis vadovas\nChief organiser of international and Lithuanian students art and science events","vnt.\nunit",0,25,{"$f":"G97*H97","v":0}]
["Tab.Nr.",{"$f":"VLOOKUP($E$2,Source!$A$5:$B$78,2,FALSE)","v":"lll030900000"},0,4461]
["Tab.Nr.",{"$f":"VLOOKUP($E$2,Source!$A$5:$B$78,2,FALSE)","v":"lll030900000"},0,4462,"Studentų mokslinių draugijų įkūrimo organizatorius ir/ar vadovas\nHead and/or founder of students science societies","vnt.\nunit",0,10,{"$f":"G99*H99","v":0}]
["Tab.Nr.",{"$f":"VLOOKUP($E$2,Source!$A$5:$B$78,2,FALSE)","v":"lll030900000"},0,4463]
["Tab.Nr.",{"$f":"VLOOKUP($E$2,Source!$A$5:$B$78,2,FALSE)","v":"lll030900000"},0,4464,"Kitų studentų meno, mokslinių renginių organizacinis vadovas\nChief organiser of other students science events","vnt.\nunit",0,10,{"$f":"G101*H101","v":0}]
["Tab.Nr.",{"$f":"VLOOKUP($E$2,Source!$A$5:$B$78,2,FALSE)","v":"lll030900000"},0,4465]
["Tab.Nr.",{"$f":"VLOOKUP($E$2,Source!$A$5:$B$78,2,FALSE)","v":"lll030900000"},0,4466,"Studentų ir jaunųjų menininkų konkursinių darbų vadovas\nSupervisor of students' and young scientists' award-winning papers","vnt.\nunit",0,5,{"$f":"G103*H103","v":0}]
["Tab.Nr.",{"$f":"VLOOKUP($E$2,Source!$A$5:$B$78,2,FALSE)","v":"lll030900000"},0,4467]
[null,null,null,null,"Iš viso:\nTotal:",null,null,null,{"$f":"I97+I99+I101+I103","v":0}]
[]
[null,null,null,null,"Mokslininkų rengimas\nTraining of young researchers","Mat. vnt.\nMeasurement unit","Kiekis\nQuantity","Skiriami taškai\nPoints","Iš viso:\nTotal:"]
["Tab.Nr.",{"$f":"VLOOKUP($E$2,Source!$A$5:$B$78,2,FALSE)","v":"lll030900000"},0,4471,"Doktorantų, per vertinamąjį laikotarpį apgynusių disertacijas, mokslinis vadovas\nScientific supervisor of doctoral students who have defended their theses during the period which is being evaluated ","vnt.\nunit",0,25,{"$f":"G108*H108","v":0}]
["Tab.Nr.",{"$f":"VLOOKUP($E$2,Source!$A$5:$B$78,2,FALSE)","v":"lll030900000"},0,4472]
["Tab.Nr.",{"$f":"VLOOKUP($E$2,Source!$A$5:$B$78,2,FALSE)","v":"lll030900000"},0,4473,"Doktorantų, per vertinamąjį laikotarpį apgynusių disertacijas, konsultantas\nConsultant of doctoral students who have defended their theses during the period which is being evaluated ","vnt.\nunit",0,10,{"$f":"G110*H110","v":0}]
["Tab.Nr.",{"$f":"VLOOKUP($E$2,Source!$A$5:$B$78,2,FALSE)","v":"lll030900000"},0,4474]
["Tab.Nr.",{"$f":"VLOOKUP($E$2,Source!$A$5:$B$78,2,FALSE)","v":"lll030900000"},0,4475,"Doktorantų vasaros mokyklos organizatorius\nOrganiser of a summer school for doctoral students","vnt.\nunit",0,20,{"$f":"G112*H112","v":0}]
["Tab.Nr.",{"$f":"VLOOKUP($E$2,Source!$A$5:$B$78,2,FALSE)","v":"lll030900000"},0,4476]
["Tab.Nr.",{"$f":"VLOOKUP($E$2,Source!$A$5:$B$78,2,FALSE)","v":"lll030900000"},0,4477,"Doktorantūros (jungtinės) mokslo krypties komisijos pirmininkas\nChairperson of a joint doctoral committee in a science field","vnt.\nunit",0,15,{"$f":"G114*H114","v":0}]
["Tab.Nr.",{"$f":"VLOOKUP($E$2,Source!$A$5:$B$78,2,FALSE)","v":"lll030900000"},0,4478]
["Tab.Nr.",{"$f":"VLOOKUP($E$2,Source!$A$5:$B$78,2,FALSE)","v":"lll030900000"},0,4479,"Doktorantūros (jungtinės) mokslo krypties komisijos narys\nChairperson of a joint doctoral committee in a science field","vnt.\nunit",0,5,{"$f":"G116*H116","v":0}]
["Tab.Nr.",{"$f":"VLOOKUP($E$2,Source!$A$5:$B$78,2,FALSE)","v":"lll030900000"},0,4480]
["Tab.Nr.",{"$f":"VLOOKUP($E$2,Source!$A$5:$B$78,2,FALSE)","v":"lll030900000"},0,4481,"Daktaro disertacijų oponentas\nOpponent of doctoral dissertation","vnt.\nunit",0,5,{"$f":"G118*H118","v":0}]
["Tab.Nr.",{"$f":"VLOOKUP($E$2,Source!$A$5:$B$78,2,FALSE)","v":"lll030900000"},0,4482]
["Tab.Nr.",{"$f":"VLOOKUP($E$2,Source!$A$5:$B$78,2,FALSE)","v":"lll030900000"},0,4483,"Daktaro disertacijų gynimo tarybos narys\nMember of doctoral dissertation defence board","vnt.\nunit",0,3,{"$f":"G120*H120","v":0}]
["Tab.Nr.",{"$f":"VLOOKUP($E$2,Source!$A$5:$B$78,2,FALSE)","v":"lll030900000"},0,4484]
[null,null,null,null,"Iš viso:\nTotal:",null,null,null,{"$f":"I108+I110+I112+I114+I116+I118+I120","v":0}]
[]
[null,null,null,null,"Ekspertinė veikla, recenzavimas\nExpert activity, reviewing","Mat. vnt.\nMeasurement unit","Kiekis\nQuantity","Skiriami taškai\nPoints","Iš viso:\nTotal:"]
["Tab.Nr.",{"$f":"VLOOKUP($E$2,Source!$A$5:$B$78,2,FALSE)","v":"lll030900000"},0,4492,"Užsienio mokslų akademijos (garbės) narys\n(Honorary) member of foreign academy of sciences","vnt.\nunit",0,50,{"$f":"G125*H125","v":0}]
["Tab.Nr.",{"$f":"VLOOKUP($E$2,Source!$A$5:$B$78,2,FALSE)","v":"lll030900000"},0,4493]
["Tab.Nr.",{"$f":"VLOOKUP($E$2,Source!$A$5:$B$78,2,FALSE)","v":"lll030900000"},0,4494,"Kito universiteto garbės daktaras (profesorius)\nHonorary doctor (professor) of other university ","vnt.\nunit",0,50,{"$f":"G127*H127","v":0}]
["Tab.Nr.",{"$f":"VLOOKUP($E$2,Source!$A$5:$B$78,2,FALSE)","v":"lll030900000"},0,4495]
["Tab.Nr.",{"$f":"VLOOKUP($E$2,Source!$A$5:$B$78,2,FALSE)","v":"lll030900000"},0,4496,"VDU garbės daktaras (profesorius)\nHonorary doctor (professor) of Vytautas Magnus University","vnt.\nunit",0,40,{"$f":"G129*H129","v":0}]
["Tab.Nr.",{"$f":"VLOOKUP($E$2,Source!$A$5:$B$78,2,FALSE)","v":"lll030900000"},0,4497]
["Tab.Nr.",{"$f":"VLOOKUP($E$2,Source!$A$5:$B$78,2,FALSE)","v":"lll030900000"},0,4498,"Lietuvos mokslų akademijos tikrasis narys (akademikas)\nFull member of Lithuanian Academy of Sciences (Academic)","vnt.\nunit",0,50,{"$f":"G131*H131","v":0}]
["Tab.Nr.",{"$f":"VLOOKUP($E$2,Source!$A$5:$B$78,2,FALSE)","v":"lll030900000"},0,4499]
["Tab.Nr.",{"$f":"VLOOKUP($E$2,Source!$A$5:$B$78,2,FALSE)","v":"lll030900000"},0,4500,"Lietuvos mokslo tarybos komiteto pirmininkas\nChairperson of Committee of Research Council of Lithuania","vnt.\nunit",0,50,{"$f":"G133*H133","v":0}]
["Tab.Nr.",{"$f":"VLOOKUP($E$2,Source!$A$5:$B$78,2,FALSE)","v":"lll030900000"},0,4501]
["Tab.Nr.",{"$f":"VLOOKUP($E$2,Source!$A$5:$B$78,2,FALSE)","v":"lll030900000"},0,4502,"Lietuvos mokslo tarybos komiteto narys\nMember of Committee of Research Council of Lithuania","vnt.\nunit",0,30,{"$f":"G135*H135","v":0}]
["Tab.Nr.",{"$f":"VLOOKUP($E$2,Source!$A$5:$B$78,2,FALSE)","v":"lll030900000"},0,4503]
["Tab.Nr.",{"$f":"VLOOKUP($E$2,Source!$A$5:$B$78,2,FALSE)","v":"lll030900000"},0,4504,"Lietuvos mokslo tarybos ekspertas\nExpert of Research Council of Lithuania","vnt.\nunit",0,20,0]
["Tab.Nr.",{"$f":"VLOOKUP($E$2,Source!$A$5:$B$78,2,FALSE)","v":"lll030900000"},0,4505]
["Tab.Nr.",{"$f":"VLOOKUP($E$2,Source!$A$5:$B$78,2,FALSE)","v":"lll030900000"},0,4506,"ES mokslo programų narys/ekspertas\nMember/expert of the EU research programmes","vnt.\nunit",0,30,0]
["Tab.Nr.",{"$f":"VLOOKUP($E$2,Source!$A$5:$B$78,2,FALSE)","v":"lll030900000"},0,4507]
["Tab.Nr.",{"$f":"VLOOKUP($E$2,Source!$A$5:$B$78,2,FALSE)","v":"lll030900000"},0,4508,"Kitų tarptautinių mokslo programų, asociacijų, projektų narys/ekspertas\nMember/expert of other international programmes, associations, projects","vnt.\nunit",0,15,0]
["Tab.Nr.",{"$f":"VLOOKUP($E$2,Source!$A$5:$B$78,2,FALSE)","v":"lll030900000"},0,4509]
[{"$f":"TRIM(MID($E$1,FIND(\"[\",$E$1,1)+1,FIND(\"]\",$E$1,1)-FIND(\"[\",$E$1,1)-1))","v":"Tab.Nr."},{"$f":"VLOOKUP($E$2,Source!$A$5:$B$78,2,FALSE)","v":"lll030900000"},{"$f":"$E$3","v":0},4510,"Prezidentūros, Seimo, Vyriausybės, kitų valstybės valdymo bei teisminių institucijų kuriamų komisijų, komitetų, tarybų ir pan. narys/ekspertas\nMember/expert of committees, boards, etc formed by President's Office, Parliament, Government and other state governing and court institutions","vnt.\nunit",0,10,0]
["Tab.Nr.",{"$f":"VLOOKUP($E$2,Source!$A$5:$B$78,2,FALSE)","v":"lll030900000"},0,4511]
["Tab.Nr.",{"$f":"VLOOKUP($E$2,Source!$A$5:$B$78,2,FALSE)","v":"lll030900000"},0,4512,"Savivaldybių ar kitų miesto valdymo bei teisminių institucijų kuriamų komisijų, komitetų, tarybų ir pan. narys/ekspertas\nMember/expert of committees, boards, etc formed by municipalities or other municipal and court institutions","vnt.\nunit",0,8,{"$f":"G145*H145","v":0}]
["Tab.Nr.",{"$f":"VLOOKUP($E$2,Source!$A$5:$B$78,2,FALSE)","v":"lll030900000"},0,4513]
["Tab.Nr.",{"$f":"VLOOKUP($E$2,Source!$A$5:$B$78,2,FALSE)","v":"lll030900000"},0,4514,"Respublikinių, miesto projektų konkursų komisijų, komitetų narys/ekspertas\nMember/expert of national and municipal project contests committees","vnt.\nunit",0,4,{"$f":"G147*H147","v":0}]
["Tab.Nr.",{"$f":"VLOOKUP($E$2,Source!$A$5:$B$78,2,FALSE)","v":"lll030900000"},0,4515]
["Tab.Nr.",{"$f":"VLOOKUP($E$2,Source!$A$5:$B$78,2,FALSE)","v":"lll030900000"},0,4516,"Universiteto komisijos narys/ekspertas\nMember/expert of the university committee","vnt.\nunit",0,6,{"$f":"G149*H149","v":0}]
["Tab.Nr.",{"$f":"VLOOKUP($E$2,Source!$A$5:$B$78,2,FALSE)","v":"lll030900000"},0,4517]
["Tab.Nr.",{"$f":"VLOOKUP($E$2,Source!$A$5:$B$78,2,FALSE)","v":"lll030900000"},0,4518,"Vadovėlių ir monografijų recenzavimas\nReview of textbooks and monographs","vnt.\nunit",0,10,{"$f":"G151*H151","v":0}]
["Tab.Nr.",{"$f":"VLOOKUP($E$2,Source!$A$5:$B$78,2,FALSE)","v":"lll030900000"},0,4519]
["Tab.Nr.",{"$f":"VLOOKUP($E$2,Source!$A$5:$B$78,2,FALSE)","v":"lll030900000"},0,4520,"Mokslinių straipsnių, publikuotų moksliniuose žurnaluose, registruotuose Mokslinės informacijos instituto (ISI) duomenų bazėse,  recenzavimas\nReview of articles, published in scientific journals, registered in the Institute for Scientific Information (ISI) databases","vnt.\nunit",0,8,{"$f":"G153*H153","v":0}]
["Tab.Nr.",{"$f":"VLOOKUP($E$2,Source!$A$5:$B$78,2,FALSE)","v":"lll030900000"},0,4521]
["Tab.Nr.",{"$f":"VLOOKUP($E$2,Source!$A$5:$B$78,2,FALSE)","v":"lll030900000"},0,4522,"Mokslinių straipsnių, publikuotų moksliniuose žurnaluose, registruotuose kitose mokslinės informacijos duomenų bazėse, recenzavimas\nReview of articles, published in scientific journals, registered in other databases of scientific information","vnt.\nunit",0,4,{"$f":"G155*H155","v":0}]
["Tab.Nr.",{"$f":"VLOOKUP($E$2,Source!$A$5:$B$78,2,FALSE)","v":"lll030900000"},0,4523]
["Tab.Nr.",{"$f":"VLOOKUP($E$2,Source!$A$5:$B$78,2,FALSE)","v":"lll030900000"},0,4526,"Disertacijos recenzavimas katedrose\nReview of dissertation at the department","vnt.\nunit",0,8,{"$f":"G157*H157","v":0}]
["Tab.Nr.",{"$f":"VLOOKUP($E$2,Source!$A$5:$B$78,2,FALSE)","v":"lll030900000"},0,4527]
["Tab.Nr.",{"$f":"VLOOKUP($E$2,Source!$A$5:$B$78,2,FALSE)","v":"lll030900000"},0,4528,"Metodinių priemonių, mokomųjų knygų recenzavimas\nReview of methodical and teaching literature","vnt.\nunit",0,3,{"$f":"G159*H159","v":0}]
["Tab.Nr.",{"$f":"VLOOKUP($E$2,Source!$A$5:$B$78,2,FALSE)","v":"lll030900000"},0,4529]
[null,null,null,null,"Iš viso:\nTotal:",null,null,null,{"$f":"I125+I127+I129+I131+I133+I135+I137+I139+I141+I143+I145+I147+I149+I151+I153+I155+I157+I159","v":0}]
[]
[null,null,null,null,"Projektinė veikla\nProject activity","Mat. vnt.\nMeasurement unit","Kiekis\nQuantity","Skiriami taškai\nPoints","Iš viso:\nTotal:"]
[null,null,null,null,"Tarptautiniai mokslo projektai (FP6, FP7, FP8, EUROATOM ir kt) (iki 50 tūkst. Lt)\nInternational research projects (FP6, FP7, FP8, EUROATOM and others) (up to 50 000 Litas)"]
["Tab.Nr.",{"$f":"VLOOKUP($E$2,Source!$A$5:$B$78,2,FALSE)","v":"lll030900000"},0,4532,"Pagrindinis viso projekto koordinatorius/vadovas\nChief coordinator/manager of a whole project","vnt.\nunit",0,30,{"$f":"G165*H165","v":0}]
["Tab.Nr.",{"$f":"VLOOKUP($E$2,Source!$A$5:$B$78,2,FALSE)","v":"lll030900000"},0,4533]
["Tab.Nr.",{"$f":"VLOOKUP($E$2,Source!$A$5:$B$78,2,FALSE)","v":"lll030900000"},0,4534,"Projekto partnerinės dalies koordinatorius/vadovas\nCoordinator/manager of a partnership part of a project","vnt.\nunit",0,15,{"$f":"G167*H167","v":0}]
["Tab.Nr.",{"$f":"VLOOKUP($E$2,Source!$A$5:$B$78,2,FALSE)","v":"lll030900000"},0,4535]
["Tab.Nr.",{"$f":"VLOOKUP($E$2,Source!$A$5:$B$78,2,FALSE)","v":"lll030900000"},0,4536,"Projekto vykdytojas\nProject executive ","vnt.\nunit",0,10,0]
["Tab.Nr.",{"$f":"VLOOKUP($E$2,Source!$A$5:$B$78,2,FALSE)","v":"lll030900000"},0,4537]
["Tab.Nr.",{"$f":"VLOOKUP($E$2,Source!$A$5:$B$78,2,FALSE)","v":"lll030900000"},0,4538,"Pateikta projekto paraiška (koordinatorius)\nSubmitted project proposal (coordinator)","vnt.\nunit",0,10,0]
["Tab.Nr.",{"$f":"VLOOKUP($E$2,Source!$A$5:$B$78,2,FALSE)","v":"lll030900000"},0,4539]
["Tab.Nr.",{"$f":"VLOOKUP($E$2,Source!$A$5:$B$78,2,FALSE)","v":"lll030900000"},0,4540,"Pateikta projekto paraiška (partneris)\nSubmitted project proposal (partner)","vnt.\nunit",0,5,0]
["Tab.Nr.",{"$f":"VLOOKUP($E$2,Source!$A$5:$B$78,2,FALSE)","v":"lll030900000"},0,4541]
[null,null,null,null,"Tarptautiniai mokslo projektai (FP6, FP7, FP8, EUROATOM ir kt) (nuo 50 iki 500 tūkst. Lt.)\nInternational research projects (FP6, FP7, FP8, EUROATOM and others) (from 50 000 to 500 000 Litas)"]
["Tab.Nr.",{"$f":"VLOOKUP($E$2,Source!$A$5:$B$78,2,FALSE)","v":"lll030900000"},0,4543,"Pagrindinis viso projekto koordinatorius/vadovas\nChief coordinator/manager of a whole project","vnt.\nunit",0,60,{"$f":"G176*H176","v":0}]
["Tab.Nr.",{"$f":"VLOOKUP($E$2,Source!$A$5:$B$78,2,FALSE)","v":"lll030900000"},0,4544]
["Tab.Nr.",{"$f":"VLOOKUP($E$2,Source!$A$5:$B$78,2,FALSE)","v":"lll030900000"},0,4545,"Projekto partnerinės dalies koordinatorius/vadovas\nCoordinator/manager of a partnership part of a project","vnt.\nunit",0,30,{"$f":"G178*H178","v":0}]
["Tab.Nr.",{"$f":"VLOOKUP($E$2,Source!$A$5:$B$78,2,FALSE)","v":"lll030900000"},0,4546]
["Tab.Nr.",{"$f":"VLOOKUP($E$2,Source!$A$5:$B$78,2,FALSE)","v":"lll030900000"},0,4547,"Projekto vykdytojas\nProject executive ","vnt.\nunit",0,20,0]
["Tab.Nr.",{"$f":"VLOOKUP($E$2,Source!$A$5:$B$78,2,FALSE)","v":"lll030900000"},0,4548]
["Tab.Nr.",{"$f":"VLOOKUP($E$2,Source!$A$5:$B$78,2,FALSE)","v":"lll030900000"},0,4549,"Pateikta projekto paraiška (koordinatorius)\nSubmitted project proposal (coordinator)","vnt.\nunit",0,20,0]
["Tab.Nr.",{"$f":"VLOOKUP($E$2,Source!$A$5:$B$78,2,FALSE)","v":"lll030900000"},0,4550]
["Tab.Nr.",{"$f":"VLOOKUP($E$2,Source!$A$5:$B$78,2,FALSE)","v":"lll030900000"},0,4551,"Pateikta projekto paraiška (partneris)\nSubmitted project proposal (partner)","vnt.\nunit",0,10,0]
["Tab.Nr.",{"$f":"VLOOKUP($E$2,Source!$A$5:$B$78,2,FALSE)","v":"lll030900000"},0,4552]
[null,null,null,null,"Tarptautiniai mokslo projektai (FP6, FP7, FP8, EUROATOM ir kt) (virš 500 tūkst. Lt.)\nInternational research projects (FP6, FP7, FP8, EUROATOM and others) (over 500 000 Litas)"]
["Tab.Nr.",{"$f":"VLOOKUP($E$2,Source!$A$5:$B$78,2,FALSE)","v":"lll030900000"},0,4554,"Pagrindinis viso projekto koordinatorius/vadovas\nChief coordinator/manager of a whole project","vnt.\nunit",0,80,{"$f":"G187*H187","v":0}]
["Tab.Nr.",{"$f":"VLOOKUP($E$2,Source!$A$5:$B$78,2,FALSE)","v":"lll030900000"},0,4555]
["Tab.Nr.",{"$f":"VLOOKUP($E$2,Source!$A$5:$B$78,2,FALSE)","v":"lll030900000"},0,4556,"Projekto partnerinės dalies koordinatorius/vadovas\nCoordinator/manager of a partnership part of a project","vnt.\nunit",0,40,{"$f":"G189*H189","v":0}]
["Tab.Nr.",{"$f":"VLOOKUP($E$2,Source!$A$5:$B$78,2,FALSE)","v":"lll030900000"},0,4557]
["Tab.Nr.",{"$f":"VLOOKUP($E$2,Source!$A$5:$B$78,2,FALSE)","v":"lll030900000"},0,4558,"Projekto vykdytojas\nProject executive ","vnt.\nunit",0,25,0]
["Tab.Nr.",{"$f":"VLOOKUP($E$2,Source!$A$5:$B$78,2,FALSE)","v":"lll030900000"},0,4559]
["Tab.Nr.",{"$f":"VLOOKUP($E$2,Source!$A$5:$B$78,2,FALSE)","v":"lll030900000"},0,4560,"Pateikta projekto paraiška (koordinatorius)\nSubmitted project proposal (coordinator)","vnt.\nunit",0,25,0]
["Tab.Nr.",{"$f":"VLOOKUP($E$2,Source!$A$5:$B$78,2,FALSE)","v":"lll030900000"},0,4561]
["Tab.Nr.",{"$f":"VLOOKUP($E$2,Source!$A$5:$B$78,2,FALSE)","v":"lll030900000"},0,4562,"Pateikta projekto paraiška (partneris)\nSubmitted project proposal (partner)","vnt.\nunit",0,15,0]
["Tab.Nr.",{"$f":"VLOOKUP($E$2,Source!$A$5:$B$78,2,FALSE)","v":"lll030900000"},0,4563]
[null,null,null,null,"Iš viso:\nTotal:",null,null,null,{"$f":"I165+I167+I169+I171+I173+I176+I178+I180+I182+I184+I187+I189+I191+I193+I195","v":0}]
[null,null,null,null,"Tarptautiniai studijų, ES paramos struktūriniai projektai (iki 50 tūkst. Lt.)\nEU structural support projects, international studies projects (up to 50 000 Litas)"]
["Tab.Nr.",{"$f":"VLOOKUP($E$2,Source!$A$5:$B$78,2,FALSE)","v":"lll030900000"},0,4565,"Pagrindinis viso projekto koordinatorius/vadovas\nChief coordinator/manager of a whole project","vnt.\nunit",0,15,{"$f":"G199*H199","v":0}]
["Tab.Nr.",{"$f":"VLOOKUP($E$2,Source!$A$5:$B$78,2,FALSE)","v":"lll030900000"},0,4566]
["Tab.Nr.",{"$f":"VLOOKUP($E$2,Source!$A$5:$B$78,2,FALSE)","v":"lll030900000"},0,4567,"Projekto partnerinės dalies koordinatorius/vadovas\nCoordinator/manager of a partnership part of a project","vnt.\nunit",0,10,{"$f":"G201*H201","v":0}]
["Tab.Nr.",{"$f":"VLOOKUP($E$2,Source!$A$5:$B$78,2,FALSE)","v":"lll030900000"},0,4568]
["Tab.Nr.",{"$f":"VLOOKUP($E$2,Source!$A$5:$B$78,2,FALSE)","v":"lll030900000"},0,4569,"Projekto vykdytojas\nProject executive ","vnt.\nunit",0,5,{"$f":"G203*H203","v":0}]
["Tab.Nr.",{"$f":"VLOOKUP($E$2,Source!$A$5:$B$78,2,FALSE)","v":"lll030900000"},0,4570]
["Tab.Nr.",{"$f":"VLOOKUP($E$2,Source!$A$5:$B$78,2,FALSE)","v":"lll030900000"},0,4571,"Pateikta projekto paraiška (koordinatorius)\nSubmitted project proposal (coordinator)","vnt.\nunit",0,5,{"$f":"G205*H205","v":0}]
["Tab.Nr.",{"$f":"VLOOKUP($E$2,Source!$A$5:$B$78,2,FALSE)","v":"lll030900000"},0,4572]
["Tab.Nr.",{"$f":"VLOOKUP($E$2,Source!$A$5:$B$78,2,FALSE)","v":"lll030900000"},0,4573,"Pateikta projekto paraiška (partneris)\nSubmitted project proposal (partner)","vnt.\nunit",0,2,{"$f":"G207*H207","v":0}]
["Tab.Nr.",{"$f":"VLOOKUP($E$2,Source!$A$5:$B$78,2,FALSE)","v":"lll030900000"},0,4574]
[null,null,null,null,"Tarptautiniai studijų, ES paramos struktūriniai projektai (nuo 50 iki 500 tūkst. Lt.)\nEU structural support projects, international studies projects (from 50 000 to 500 000 Litas)"]
[{"$f":"TRIM(MID($E$1,FIND(\"[\",$E$1,1)+1,FIND(\"]\",$E$1,1)-FIND(\"[\",$E$1,1)-1))","v":"Tab.Nr."},{"$f":"VLOOKUP($E$2,Source!$A$5:$B$78,2,FALSE)","v":"lll030900000"},{"$f":"$E$3","v":0},4576,"Pagrindinis viso projekto koordinatorius/vadovas\nChief coordinator/manager of a whole project","vnt.\nunit",0,30,{"$f":"G210*H210","v":0}]
["Tab.Nr.",{"$f":"VLOOKUP($E$2,Source!$A$5:$B$78,2,FALSE)","v":"lll030900000"},0,4577]
["Tab.Nr.",{"$f":"VLOOKUP($E$2,Source!$A$5:$B$78,2,FALSE)","v":"lll030900000"},0,4578,"Projekto partnerinės dalies koordinatorius/vadovas\nCoordinator/manager of a partnership part of a project","vnt.\nunit",0,20,{"$f":"G212*H212","v":0}]
["Tab.Nr.",{"$f":"VLOOKUP($E$2,Source!$A$5:$B$78,2,FALSE)","v":"lll030900000"},0,4579]
["Tab.Nr.",{"$f":"VLOOKUP($E$2,Source!$A$5:$B$78,2,FALSE)","v":"lll030900000"},0,4580,"Projekto vykdytojas\nProject executive ","vnt.\nunit",0,10,{"$f":"G214*H214","v":0}]
["Tab.Nr.",{"$f":"VLOOKUP($E$2,Source!$A$5:$B$78,2,FALSE)","v":"lll030900000"},0,4581]
["Tab.Nr.",{"$f":"VLOOKUP($E$2,Source!$A$5:$B$78,2,FALSE)","v":"lll030900000"},0,4582,"Pateikta projekto paraiška (koordinatorius)\nSubmitted project proposal (coordinator)","vnt.\nunit",0,10,{"$f":"G216*H216","v":0}]
["Tab.Nr.",{"$f":"VLOOKUP($E$2,Source!$A$5:$B$78,2,FALSE)","v":"lll030900000"},0,4583]
["Tab.Nr.",{"$f":"VLOOKUP($E$2,Source!$A$5:$B$78,2,FALSE)","v":"lll030900000"},0,4584,"Pateikta projekto paraiška (partneris)\nSubmitted project proposal (partner)","vnt.\nunit",0,3,{"$f":"G218*H218","v":0}]
["Tab.Nr.",{"$f":"VLOOKUP($E$2,Source!$A$5:$B$78,2,FALSE)","v":"lll030900000"},0,4585]
[null,null,null,null,"Tarptautiniai studijų, ES paramos struktūriniai projektai (virš 500 tūkst. Lt.)\nEU structural support projects, international studies projects (over 500 000 Litas)"]
["Tab.Nr.",{"$f":"VLOOKUP($E$2,Source!$A$5:$B$78,2,FALSE)","v":"lll030900000"},0,4587,"Pagrindinis viso projekto koordinatorius/vadovas\nChief coordinator/manager of a whole project","vnt.\nunit",0,40,{"$f":"G221*H221","v":0}]
["Tab.Nr.",{"$f":"VLOOKUP($E$2,Source!$A$5:$B$78,2,FALSE)","v":"lll030900000"},0,4588]
["Tab.Nr.",{"$f":"VLOOKUP($E$2,Source!$A$5:$B$78,2,FALSE)","v":"lll030900000"},0,4589,"Projekto partnerinės dalies koordinatorius/vadovas\nCoordinator/manager of a partnership part of a project","vnt.\nunit",0,25,{"$f":"G223*H223","v":0}]
["Tab.Nr.",{"$f":"VLOOKUP($E$2,Source!$A$5:$B$78,2,FALSE)","v":"lll030900000"},0,4590]
["Tab.Nr.",{"$f":"VLOOKUP($E$2,Source!$A$5:$B$78,2,FALSE)","v":"lll030900000"},0,4591,"Projekto vykdytojas\nProject executive ","vnt.\nunit",0,15,{"$f":"G225*H225","v":0}]
["Tab.Nr.",{"$f":"VLOOKUP($E$2,Source!$A$5:$B$78,2,FALSE)","v":"lll030900000"},0,4592]
["Tab.Nr.",{"$f":"VLOOKUP($E$2,Source!$A$5:$B$78,2,FALSE)","v":"lll030900000"},0,4593,"Pateikta projekto paraiška (koordinatorius)\nSubmitted project proposal (coordinator)","vnt.\nunit",0,15,{"$f":"G227*H227","v":0}]
["Tab.Nr.",{"$f":"VLOOKUP($E$2,Source!$A$5:$B$78,2,FALSE)","v":"lll030900000"},0,4594]
["Tab.Nr.",{"$f":"VLOOKUP($E$2,Source!$A$5:$B$78,2,FALSE)","v":"lll030900000"},0,4595,"Pateikta projekto paraiška (partneris)\nSubmitted project proposal (partner)","vnt.\nunit",0,8,{"$f":"G229*H229","v":0}]
["Tab.Nr.",{"$f":"VLOOKUP($E$2,Source!$A$5:$B$78,2,FALSE)","v":"lll030900000"},0,4596]
[null,null,null,null,"Iš viso:\nTotal:",null,null,null,{"$f":"I199+I201+I203+I205+I207+I210+I212+I214+I216+I218+I221+I223+I225+I227+I229","v":0}]
[null,null,null,null,"Kiti mokslo projektai (LMT), užsakomieji mokslinių tyrimų ir eksperimentinės plėtros darbai (iki 50 tūkst. Lt.)\nOther research projects (Research Council of Lithuania), contracted research and experimental development activities (up to 50 000 Litas)"]
["Tab.Nr.",{"$f":"VLOOKUP($E$2,Source!$A$5:$B$78,2,FALSE)","v":"lll030900000"},0,4598,"Pagrindinis viso projekto koordinatorius/vadovas\nChief coordinator/manager of a whole project","vnt.\nunit",0,15,{"$f":"G233*H233","v":0}]
["Tab.Nr.",{"$f":"VLOOKUP($E$2,Source!$A$5:$B$78,2,FALSE)","v":"lll030900000"},0,4599]
["Tab.Nr.",{"$f":"VLOOKUP($E$2,Source!$A$5:$B$78,2,FALSE)","v":"lll030900000"},0,4600,"Projekto partnerinės dalies koordinatorius/vadovas\nCoordinator/manager of a partnership part of a project","vnt.\nunit",0,5,{"$f":"G235*H235","v":0}]
["Tab.Nr.",{"$f":"VLOOKUP($E$2,Source!$A$5:$B$78,2,FALSE)","v":"lll030900000"},0,4601]
["Tab.Nr.",{"$f":"VLOOKUP($E$2,Source!$A$5:$B$78,2,FALSE)","v":"lll030900000"},0,4602,"Projekto vykdytojas\nProject executive ","vnt.\nunit",0,2,{"$f":"G237*H237","v":0}]
["Tab.Nr.",{"$f":"VLOOKUP($E$2,Source!$A$5:$B$78,2,FALSE)","v":"lll030900000"},0,4603]
["Tab.Nr.",{"$f":"VLOOKUP($E$2,Source!$A$5:$B$78,2,FALSE)","v":"lll030900000"},0,4604,"Pateikta projekto paraiška (koordinatorius)\nSubmitted project proposal (coordinator)","vnt.\nunit",0,2,{"$f":"G239*H239","v":0}]
["Tab.Nr.",{"$f":"VLOOKUP($E$2,Source!$A$5:$B$78,2,FALSE)","v":"lll030900000"},0,4605]
["Tab.Nr.",{"$f":"VLOOKUP($E$2,Source!$A$5:$B$78,2,FALSE)","v":"lll030900000"},0,4606,"Pateikta projekto paraiška (partneris)\nSubmitted project proposal (partner)","vnt.\nunit",0,2,{"$f":"G241*H241","v":0}]
["Tab.Nr.",{"$f":"VLOOKUP($E$2,Source!$A$5:$B$78,2,FALSE)","v":"lll030900000"},0,4607]
[null,null,null,null,"Kiti mokslo projektai (LMT), užsakomieji mokslinių tyrimų ir eksperimentinės plėtros darbai (nuo 50 iki 500 tūkst. Lt.)\nOther research projects (Research Council of Lithuania), contracted research and experimental development activties (from 50 000 to 500 000 Litas)"]
["Tab.Nr.",{"$f":"VLOOKUP($E$2,Source!$A$5:$B$78,2,FALSE)","v":"lll030900000"},0,4609,"Pagrindinis viso projekto koordinatorius/vadovas\nChief coordinator/manager of a whole project","vnt.\nunit",0,25,{"$f":"G244*H244","v":0}]
["Tab.Nr.",{"$f":"VLOOKUP($E$2,Source!$A$5:$B$78,2,FALSE)","v":"lll030900000"},0,4610]
["Tab.Nr.",{"$f":"VLOOKUP($E$2,Source!$A$5:$B$78,2,FALSE)","v":"lll030900000"},0,4611,"Projekto partnerinės dalies koordinatorius/vadovas\nCoordinator/manager of a partnership part of a project","vnt.\nunit",0,10,{"$f":"G246*H246","v":0}]
["Tab.Nr.",{"$f":"VLOOKUP($E$2,Source!$A$5:$B$78,2,FALSE)","v":"lll030900000"},0,4612]
["Tab.Nr.",{"$f":"VLOOKUP($E$2,Source!$A$5:$B$78,2,FALSE)","v":"lll030900000"},0,4613,"Projekto vykdytojas\nProject executive ","vnt.\nunit",0,5,{"$f":"G248*H248","v":0}]
["Tab.Nr.",{"$f":"VLOOKUP($E$2,Source!$A$5:$B$78,2,FALSE)","v":"lll030900000"},0,4614]
["Tab.Nr.",{"$f":"VLOOKUP($E$2,Source!$A$5:$B$78,2,FALSE)","v":"lll030900000"},0,4615,"Pateikta projekto paraiška (koordinatorius)\nSubmitted project proposal (coordinator)","vnt.\nunit",0,5,{"$f":"G250*H250","v":0}]
["Tab.Nr.",{"$f":"VLOOKUP($E$2,Source!$A$5:$B$78,2,FALSE)","v":"lll030900000"},0,4616]
["Tab.Nr.",{"$f":"VLOOKUP($E$2,Source!$A$5:$B$78,2,FALSE)","v":"lll030900000"},0,4617,"Pateikta projekto paraiška (partneris)\nSubmitted project proposal (partner)","vnt.\nunit",0,3,{"$f":"G252*H252","v":0}]
["Tab.Nr.",{"$f":"VLOOKUP($E$2,Source!$A$5:$B$78,2,FALSE)","v":"lll030900000"},0,4618]
[null,null,null,null,"Kiti mokslo projektai (LMT), užsakomieji mokslinių tyrimų ir eksperimentinės plėtros darbai (virš 500 tūkst. Lt.)\nOther research projects (Research Council of Lithuania), contracted research and experimental development activities (over 500 000 Litas)"]
["Tab.Nr.",{"$f":"VLOOKUP($E$2,Source!$A$5:$B$78,2,FALSE)","v":"lll030900000"},0,4620,"Pagrindinis viso projekto koordinatorius/vadovas\nChief coordinator/manager of a whole project","vnt.\nunit",0,30,{"$f":"G255*H255","v":0}]
["Tab.Nr.",{"$f":"VLOOKUP($E$2,Source!$A$5:$B$78,2,FALSE)","v":"lll030900000"},0,4621]
["Tab.Nr.",{"$f":"VLOOKUP($E$2,Source!$A$5:$B$78,2,FALSE)","v":"lll030900000"},0,4622,"Projekto partnerinės dalies koordinatorius/vadovas\nCoordinator/manager of a partnership part of a project","vnt.\nunit",0,20,{"$f":"G257*H257","v":0}]
["Tab.Nr.",{"$f":"VLOOKUP($E$2,Source!$A$5:$B$78,2,FALSE)","v":"lll030900000"},0,4623]
["Tab.Nr.",{"$f":"VLOOKUP($E$2,Source!$A$5:$B$78,2,FALSE)","v":"lll030900000"},0,4624,"Projekto vykdytojas\nProject executive ","vnt.\nunit",0,10,{"$f":"G259*H259","v":0}]
["Tab.Nr.",{"$f":"VLOOKUP($E$2,Source!$A$5:$B$78,2,FALSE)","v":"lll030900000"},0,4625]
["Tab.Nr.",{"$f":"VLOOKUP($E$2,Source!$A$5:$B$78,2,FALSE)","v":"lll030900000"},0,4626,"Pateikta projekto paraiška (koordinatorius)\nSubmitted project proposal (coordinator)","vnt.\nunit",0,10,{"$f":"G261*H261","v":0}]
["Tab.Nr.",{"$f":"VLOOKUP($E$2,Source!$A$5:$B$78,2,FALSE)","v":"lll030900000"},0,4627]
["Tab.Nr.",{"$f":"VLOOKUP($E$2,Source!$A$5:$B$78,2,FALSE)","v":"lll030900000"},0,4628,"Pateikta projekto paraiška (partneris)\nSubmitted project proposal (partner)","vnt.\nunit",0,8,{"$f":"G263*H263","v":0}]
["Tab.Nr.",{"$f":"VLOOKUP($E$2,Source!$A$5:$B$78,2,FALSE)","v":"lll030900000"},0,4629]
[null,null,null,null,"Iš viso:\nTotal:",null,null,null,{"$f":"I233+I235+I237+I239+I241+I244+I246+I248+I250+I252+I255+I257+I259+I261+I263","v":0}]
[]
[null,null,null,null,"Organizacinė veikla\nOrganising activity","Mat. vnt.\nMeasurement unit","Kiekis\nQuantity","Skiriami taškai\nPoints","Iš viso:\nTotal:"]
["Tab.Nr.",{"$f":"VLOOKUP($E$2,Source!$A$5:$B$78,2,FALSE)","v":"lll030900000"},0,4631,"Tarptautinių nevyriausybinių organizacijų (profesinių sąjungų, asociacijų, komisijų, tarybų, komitetų) pirmininkas\nChairperson of international non-governmental organisations (trade unions, associations, commissions, councils, committees)","vnt.\nunit",0,25,{"$f":"G268*H268","v":0}]
["Tab.Nr.",{"$f":"VLOOKUP($E$2,Source!$A$5:$B$78,2,FALSE)","v":"lll030900000"},0,4632]
["Tab.Nr.",{"$f":"VLOOKUP($E$2,Source!$A$5:$B$78,2,FALSE)","v":"lll030900000"},0,4633,"Tarptautinių nevyriausybinių organizacijų (profesinių sąjungų, federacijų, asociacijų, komisijų, tarybų, komitetų) valdybos narys\nBoard member of international non-governmental organisations (trade unions, associations, commissions, councils, committees)","vnt.\nunit",0,10,{"$f":"G270*H270","v":0}]
["Tab.Nr.",{"$f":"VLOOKUP($E$2,Source!$A$5:$B$78,2,FALSE)","v":"lll030900000"},0,4634]
["Tab.Nr.",{"$f":"VLOOKUP($E$2,Source!$A$5:$B$78,2,FALSE)","v":"lll030900000"},0,4635,"Nevyriausybinių Lietuvos organizacijų (profesinių sąjungų, asociacijų, komisijų, tarybų, komitetų, draugijų) valdybos pirmininkas\nChairperson of non-governmental Lithuanian organisations (trade unions, associations, commissions, councils, committees)","vnt.\nunit",0,8,{"$f":"G272*H272","v":0}]
[{"$f":"TRIM(MID($E$1,FIND(\"[\",$E$1,1)+1,FIND(\"]\",$E$1,1)-FIND(\"[\",$E$1,1)-1))","v":"Tab.Nr."},{"$f":"VLOOKUP($E$2,Source!$A$5:$B$78,2,FALSE)","v":"lll030900000"},{"$f":"$E$3","v":0},4636]
["Tab.Nr.",{"$f":"VLOOKUP($E$2,Source!$A$5:$B$78,2,FALSE)","v":"lll030900000"},0,4637,"Nevyriausybinių Lietuvos organizacijų (profesinių sąjungų, asociacijų, komisijų, tarybų, komitetų, draugijų) valdybos narys\nBoard member of non-governmental Lithuanian organisations (trade unions, associations, commissions, councils, committees)","vnt.\nunit",0,4,{"$f":"G274*H274","v":0}]
["Tab.Nr.",{"$f":"VLOOKUP($E$2,Source!$A$5:$B$78,2,FALSE)","v":"lll030900000"},0,4638]
["Tab.Nr.",{"$f":"VLOOKUP($E$2,Source!$A$5:$B$78,2,FALSE)","v":"lll030900000"},0,4639,"VDU Tarybos narys\nVMU Council member ","vnt.\nunit",0,20,{"$f":"G276*H276","v":0}]
["Tab.Nr.",{"$f":"VLOOKUP($E$2,Source!$A$5:$B$78,2,FALSE)","v":"lll030900000"},0,4640]
["Tab.Nr.",{"$f":"VLOOKUP($E$2,Source!$A$5:$B$78,2,FALSE)","v":"lll030900000"},0,4641,"Kitų mokslo ir studijų institucijų senato ir/ar tarybos narys\nCouncil and/or Senate member of other research and study institutions","vnt.\nunit",0,15,{"$f":"G278*H278","v":0}]
["Tab.Nr.",{"$f":"VLOOKUP($E$2,Source!$A$5:$B$78,2,FALSE)","v":"lll030900000"},0,4642]
["Tab.Nr.",{"$f":"VLOOKUP($E$2,Source!$A$5:$B$78,2,FALSE)","v":"lll030900000"},0,4643,"Senato komiteto pirmininkas\nChairperson of the Senate committee","vnt.\nunit",0,15,{"$f":"G280*H280","v":0}]
["Tab.Nr.",{"$f":"VLOOKUP($E$2,Source!$A$5:$B$78,2,FALSE)","v":"lll030900000"},0,4644]
["Tab.Nr.",{"$f":"VLOOKUP($E$2,Source!$A$5:$B$78,2,FALSE)","v":"lll030900000"},0,4645,"Senato komiteto narys\nMember of the Senate committee","vnt.\nunit",0,8,{"$f":"G282*H282","v":0}]
["Tab.Nr.",{"$f":"VLOOKUP($E$2,Source!$A$5:$B$78,2,FALSE)","v":"lll030900000"},0,4646]
["Tab.Nr.",{"$f":"VLOOKUP($E$2,Source!$A$5:$B$78,2,FALSE)","v":"lll030900000"},0,4647,"Rektoriaus sudarytos darbo grupės pirmininkas\nChairperson of a work group formed by a rector ","vnt.\nunit",0,10,{"$f":"G284*H284","v":0}]
["Tab.Nr.",{"$f":"VLOOKUP($E$2,Source!$A$5:$B$78,2,FALSE)","v":"lll030900000"},0,4648]
["Tab.Nr.",{"$f":"VLOOKUP($E$2,Source!$A$5:$B$78,2,FALSE)","v":"lll030900000"},0,4649,"Rektoriaus sudarytos darbo grupės narys\nMember of a work group formed by the rector","vnt.\nunit",0,5,{"$f":"G286*H286","v":0}]
["Tab.Nr.",{"$f":"VLOOKUP($E$2,Source!$A$5:$B$78,2,FALSE)","v":"lll030900000"},0,4650]
["Tab.Nr.",{"$f":"VLOOKUP($E$2,Source!$A$5:$B$78,2,FALSE)","v":"lll030900000"},0,4651,"VDU padalinio tarybos pirmininkas\nChairperson of VMU structural unit council",null,0,10,{"$f":"G288*H288","v":0}]
["Tab.Nr.",{"$f":"VLOOKUP($E$2,Source!$A$5:$B$78,2,FALSE)","v":"lll030900000"},0,4652]
["Tab.Nr.",{"$f":"VLOOKUP($E$2,Source!$A$5:$B$78,2,FALSE)","v":"lll030900000"},0,4653,"VDU padalinio tarybos narys\nMember of VMU structural unit council ",null,0,5,{"$f":"G290*H290","v":0}]
["Tab.Nr.",{"$f":"VLOOKUP($E$2,Source!$A$5:$B$78,2,FALSE)","v":"lll030900000"},0,4654]
["Tab.Nr.",{"$f":"VLOOKUP($E$2,Source!$A$5:$B$78,2,FALSE)","v":"lll030900000"},0,4655,"VDU padalinio tarybos sekretorė\nSecretary of VMU structural unit council",null,0,8,{"$f":"G292*H292","v":0}]
["Tab.Nr.",{"$f":"VLOOKUP($E$2,Source!$A$5:$B$78,2,FALSE)","v":"lll030900000"},0,4656]
["Tab.Nr.",{"$f":"VLOOKUP($E$2,Source!$A$5:$B$78,2,FALSE)","v":"lll030900000"},0,4657,"VDU darbuotojų profsąjungos pirmininkas\nChairperson of VMU trade union",null,0,8,{"$f":"G294*H294","v":0}]
["Tab.Nr.",{"$f":"VLOOKUP($E$2,Source!$A$5:$B$78,2,FALSE)","v":"lll030900000"},0,4658]
["Tab.Nr.",{"$f":"VLOOKUP($E$2,Source!$A$5:$B$78,2,FALSE)","v":"lll030900000"},0,4659,"VDU darbuotojų profsąjungos komiteto narys\nCommittee member of VMU trade union",null,0,4,{"$f":"G296*H296","v":0}]
["Tab.Nr.",{"$f":"VLOOKUP($E$2,Source!$A$5:$B$78,2,FALSE)","v":"lll030900000"},0,4660]
["Tab.Nr.",{"$f":"VLOOKUP($E$2,Source!$A$5:$B$78,2,FALSE)","v":"lll030900000"},0,4661,"VDU padalinio darbo grupės pirmininkas\nChairperson of VMU structural unit work group","vnt.\nunit",0,5,0]
["Tab.Nr.",{"$f":"VLOOKUP($E$2,Source!$A$5:$B$78,2,FALSE)","v":"lll030900000"},0,4662]
["Tab.Nr.",{"$f":"VLOOKUP($E$2,Source!$A$5:$B$78,2,FALSE)","v":"lll030900000"},0,4663,"VDU padalinio darbo grupės narys\nMember of VMU structural unit work group","vnt.\nunit",0,3,0]
["Tab.Nr.",{"$f":"VLOOKUP($E$2,Source!$A$5:$B$78,2,FALSE)","v":"lll030900000"},0,4664]
["Tab.Nr.",{"$f":"VLOOKUP($E$2,Source!$A$5:$B$78,2,FALSE)","v":"lll030900000"},0,4665,"Klasterio vadovas\nHead of a research cluster","vnt.\nunit",0,20,0]
["Tab.Nr.",{"$f":"VLOOKUP($E$2,Source!$A$5:$B$78,2,FALSE)","v":"lll030900000"},0,4666]
["Tab.Nr.",{"$f":"VLOOKUP($E$2,Source!$A$5:$B$78,2,FALSE)","v":"lll030900000"},0,4667,"Klasterio tarybos pirmininkas\nChairperson of a research cluster council ","vnt.\nunit",0,10,0]
["Tab.Nr.",{"$f":"VLOOKUP($E$2,Source!$A$5:$B$78,2,FALSE)","v":"lll030900000"},0,4668]
["Tab.Nr.",{"$f":"VLOOKUP($E$2,Source!$A$5:$B$78,2,FALSE)","v":"lll030900000"},0,4669,"Klasterio tarybos narys\nMember of a research cluster council","vnt.\nunit",0,5,{"$f":"G306*H306","v":0}]
["Tab.Nr.",{"$f":"VLOOKUP($E$2,Source!$A$5:$B$78,2,FALSE)","v":"lll030900000"},0,4670]
[null,null,null,null,"Iš viso:\nTotal:",null,null,null,{"$f":"I268+I270+I272+I274+I276+I278+I280+I282+I284+I286+I288+I290+I292+I294+I296+I298+I300+I302+I304+I306","v":0}]
[]
[null,null,null,null,"Kvalifikacijos kėlimas, premijos, apdovanojimai\nQualification courses, prizes, awards","Mat. vnt.\nMeasurement unit","Kiekis\nQuantity","Skiriami taškai\nPoints","Iš viso:\nTotal:"]
[null,null,null,null,"Gautos reikšmingos premijos, apdovanojimai\nSignificant prizes and rewards"]
["Tab.Nr.",{"$f":"VLOOKUP($E$2,Source!$A$5:$B$78,2,FALSE)","v":"lll030900000"},0,4673,"Lietuvos nacionalinė mokslo, meno premija; Nacionalinė pažangos premija\nLithuanian national science prize, National culture and arts prize; National progress prize","vnt.\nunit",0,100,{"$f":"G312*H312","v":0}]
["Tab.Nr.",{"$f":"VLOOKUP($E$2,Source!$A$5:$B$78,2,FALSE)","v":"lll030900000"},0,4674]
["Tab.Nr.",{"$f":"VLOOKUP($E$2,Source!$A$5:$B$78,2,FALSE)","v":"lll030900000"},0,4675,"Užsienio ar Lietuvos vyriausybinių organizacijų apdovanojimai, premijos\nAwards or prizes by foreign or Lithuanian governmental organisations","vnt.\nunit",0,50,{"$f":"G314*H314","v":0}]
["Tab.Nr.",{"$f":"VLOOKUP($E$2,Source!$A$5:$B$78,2,FALSE)","v":"lll030900000"},0,4676]
["Tab.Nr.",{"$f":"VLOOKUP($E$2,Source!$A$5:$B$78,2,FALSE)","v":"lll030900000"},0,4677,"Užsienio ar Lietuvos nevyriausybinių organizacijų apdovanojimai, premijos\nAwards and prizes by foreign and Lithuanian non-governmental organizations","vnt.\nunit",0,30,0]
["Tab.Nr.",{"$f":"VLOOKUP($E$2,Source!$A$5:$B$78,2,FALSE)","v":"lll030900000"},0,4678]
["Tab.Nr.",{"$f":"VLOOKUP($E$2,Source!$A$5:$B$78,2,FALSE)","v":"lll030900000"},0,4679,"Lietuvos mokslų akademijos premijos\nPrizes by Lithuanian Academy of Sciences","vnt.\nunit",0,25,0]
["Tab.Nr.",{"$f":"VLOOKUP($E$2,Source!$A$5:$B$78,2,FALSE)","v":"lll030900000"},0,4680]
["Tab.Nr.",{"$f":"VLOOKUP($E$2,Source!$A$5:$B$78,2,FALSE)","v":"lll030900000"},0,4681,"LR ministerijų ir LMT apdovanojimai ir premijos\nAwards and prizes by ministries of Lithuania and Research Council of Lithuania","vnt.\nunit",0,20,0]
["Tab.Nr.",{"$f":"VLOOKUP($E$2,Source!$A$5:$B$78,2,FALSE)","v":"lll030900000"},0,4682]
["Tab.Nr.",{"$f":"VLOOKUP($E$2,Source!$A$5:$B$78,2,FALSE)","v":"lll030900000"},0,4683,"Vardiniai apdovanojimai ir premijos\nNominal awards and prizes","vnt.\nunit",0,15,0]
["Tab.Nr.",{"$f":"VLOOKUP($E$2,Source!$A$5:$B$78,2,FALSE)","v":"lll030900000"},0,4684]
["Tab.Nr.",{"$f":"VLOOKUP($E$2,Source!$A$5:$B$78,2,FALSE)","v":"lll030900000"},0,4685,"Laimėtas mokslo konkursinis finansavimas (parama mokslinėms išvykoms, vizitams, renginiams, stipendijos)\nWon competitive science funding (support for science trips, visits, events, stipends) ","vnt.\nunit",0,5,{"$f":"G324*H324","v":0}]
["Tab.Nr.",{"$f":"VLOOKUP($E$2,Source!$A$5:$B$78,2,FALSE)","v":"lll030900000"},0,4686]
["Tab.Nr.",{"$f":"VLOOKUP($E$2,Source!$A$5:$B$78,2,FALSE)","v":"lll030900000"},0,4687,"Tarptautinių organizacijų, Lietuvos ministerijų garbės, padėkos raštai/diplomai\nCertificates of appreciation, honorary diplomas awarded by international organizations and Lithuanian ministries","vnt.\nunit",0,8,{"$f":"G326*H326","v":0}]
["Tab.Nr.",{"$f":"VLOOKUP($E$2,Source!$A$5:$B$78,2,FALSE)","v":"lll030900000"},0,4688]
["Tab.Nr.",{"$f":"VLOOKUP($E$2,Source!$A$5:$B$78,2,FALSE)","v":"lll030900000"},0,4689,"Respublikinių organizacijų garbės, padėkos raštai/diplomai\nCertificates of appreciation, honorary diplomas awarded by national organizations","vnt.\nunit",0,5,{"$f":"G328*H328","v":0}]
["Tab.Nr.",{"$f":"VLOOKUP($E$2,Source!$A$5:$B$78,2,FALSE)","v":"lll030900000"},0,4690]
["Tab.Nr.",{"$f":"VLOOKUP($E$2,Source!$A$5:$B$78,2,FALSE)","v":"lll030900000"},0,4691,"Miesto organizacijų, universitetų garbės, padėkos raštai/diplomai\nCertificates of appreciation, honorary diplomas awarded by municipal  organizations ","vnt.\nunit",0,3,{"$f":"G330*H330","v":0}]
["Tab.Nr.",{"$f":"VLOOKUP($E$2,Source!$A$5:$B$78,2,FALSE)","v":"lll030900000"},0,4692]
["Tab.Nr.",{"$f":"VLOOKUP($E$2,Source!$A$5:$B$78,2,FALSE)","v":"lll030900000"},0,4693,"Stažuotės (ilgesnės nei 1 mėn.)\nTraineeships (longer than 1 month)","vnt.\nunit",0,10,{"$f":"G332*H332","v":0}]
["Tab.Nr.",{"$f":"VLOOKUP($E$2,Source!$A$5:$B$78,2,FALSE)","v":"lll030900000"},0,4694]
["Tab.Nr.",{"$f":"VLOOKUP($E$2,Source!$A$5:$B$78,2,FALSE)","v":"lll030900000"},0,4695,"Stažuotės (1 - 4 savaitės)\nTraineeships (from 1 to 4 weeks)","vnt.\nunit",0,5,{"$f":"G334*H334","v":0}]
["Tab.Nr.",{"$f":"VLOOKUP($E$2,Source!$A$5:$B$78,2,FALSE)","v":"lll030900000"},0,4696]
[null,null,null,null,"Darbo stažas VDU\nWork duration at VMU"]
["Tab.Nr.",{"$f":"VLOOKUP($E$2,Source!$A$5:$B$78,2,FALSE)","v":"lll030900000"},0,4698,"Nuo 3 iki 5 metų\nFrom 3 to 5 years",null,0,5,{"$f":"G337*H337","v":0}]
["Tab.Nr.",{"$f":"VLOOKUP($E$2,Source!$A$5:$B$78,2,FALSE)","v":"lll030900000"},0,4699]
["Tab.Nr.",{"$f":"VLOOKUP($E$2,Source!$A$5:$B$78,2,FALSE)","v":"lll030900000"},0,4700,"Nuo 5 iki 10 metų\nFrom 5 to 10 years",null,0,10,{"$f":"G339*H339","v":0}]
["Tab.Nr.",{"$f":"VLOOKUP($E$2,Source!$A$5:$B$78,2,FALSE)","v":"lll030900000"},0,4701]
["Tab.Nr.",{"$f":"VLOOKUP($E$2,Source!$A$5:$B$78,2,FALSE)","v":"lll030900000"},0,4702,"Virš 10 metų\nMore than 10 years ",null,0,15,{"$f":"G341*H341","v":0}]
["Tab.Nr.",{"$f":"VLOOKUP($E$2,Source!$A$5:$B$78,2,FALSE)","v":"lll030900000"},0,4703]
[null,null,null,null,"Iš viso:\nTotal:",null,null,null,{"$f":"I312+I314+I316+I318+I320+I322+I324+I326+I328+I330+I332+I334+I337+I339+I341","v":0}]
[]
[null,null,null,null,"Didaktinė veikla\nDidactic activities ","Mat. vnt.\nMeasurement unit","Kiekis\nQuantity","Skiriami taškai\nPoints","Iš viso:\nTotal:"]
["Tab.Nr.",{"$f":"VLOOKUP($E$2,Source!$A$5:$B$78,2,FALSE)","v":"lll030900000"},0,4705,"Naujos studijų programos parengimo ir užregistravimo darbo grupės vadovas\nHead of a work group developing and registering a new study programme","vnt.\nunit",0,30,{"$f":"G346*H346","v":0}]
["Tab.Nr.",{"$f":"VLOOKUP($E$2,Source!$A$5:$B$78,2,FALSE)","v":"lll030900000"},0,4706]
["Tab.Nr.",{"$f":"VLOOKUP($E$2,Source!$A$5:$B$78,2,FALSE)","v":"lll030900000"},0,4707,"Naujos studijų programos parengimo ir užregistravimo darbo grupės narys\nMember of a work group developing and registering a new study programme","vnt.\nunit",0,10,{"$f":"G348*H348","v":0}]
[{"$f":"TRIM(MID($E$1,FIND(\"[\",$E$1,1)+1,FIND(\"]\",$E$1,1)-FIND(\"[\",$E$1,1)-1))","v":"Tab.Nr."},{"$f":"VLOOKUP($E$2,Source!$A$5:$B$78,2,FALSE)","v":"lll030900000"},{"$f":"$E$3","v":0},4708]
["Tab.Nr.",{"$f":"VLOOKUP($E$2,Source!$A$5:$B$78,2,FALSE)","v":"lll030900000"},0,4709,"Studijų programos savianalizės rengimo grupės vadovas\nHead of a work group preparing the self-assessment of a study programme ","vnt.\nunit",0,25,{"$f":"G350*H350","v":0}]
["Tab.Nr.",{"$f":"VLOOKUP($E$2,Source!$A$5:$B$78,2,FALSE)","v":"lll030900000"},0,4710]
["Tab.Nr.",{"$f":"VLOOKUP($E$2,Source!$A$5:$B$78,2,FALSE)","v":"lll030900000"},0,4711,"Studijų programos savianalizės rengimo grupės narys\nMember of a work group preparing the self-assessment of a study programme ","vnt.\nunit",0,8,{"$f":"G352*H352","v":0}]
["Tab.Nr.",{"$f":"VLOOKUP($E$2,Source!$A$5:$B$78,2,FALSE)","v":"lll030900000"},0,4712]
["Tab.Nr.",{"$f":"VLOOKUP($E$2,Source!$A$5:$B$78,2,FALSE)","v":"lll030900000"},0,4713,"Studijų programos komiteto pirmininkas\nChairperson of a study programme committee","vnt.\nunit",0,15,{"$f":"G354*H354","v":0}]
["Tab.Nr.",{"$f":"VLOOKUP($E$2,Source!$A$5:$B$78,2,FALSE)","v":"lll030900000"},0,4714]
["Tab.Nr.",{"$f":"VLOOKUP($E$2,Source!$A$5:$B$78,2,FALSE)","v":"lll030900000"},0,4715,"Studijų programos komiteto narys\nMember of a study programme committee","vnt.\nunit",0,4,{"$f":"G356*H356","v":0}]
["Tab.Nr.",{"$f":"VLOOKUP($E$2,Source!$A$5:$B$78,2,FALSE)","v":"lll030900000"},0,4716]
["Tab.Nr.",{"$f":"VLOOKUP($E$2,Source!$A$5:$B$78,2,FALSE)","v":"lll030900000"},0,4717,"Sukurta ir patalpinta studijų dalyko medžiaga VDU nuotolinių studijų aplinkoje, tenkinant I bazinio lygio reikalavimus\nA study programme material created and uploaded in VMU distant learning environment, meeting the first basic level requirements","vnt.\nunit",0,5,{"$f":"G358*H358","v":0}]
["Tab.Nr.",{"$f":"VLOOKUP($E$2,Source!$A$5:$B$78,2,FALSE)","v":"lll030900000"},0,4718]
["Tab.Nr.",{"$f":"VLOOKUP($E$2,Source!$A$5:$B$78,2,FALSE)","v":"lll030900000"},0,4719,"Sukurta ir patalpinta studijų dalyko medžiaga VDU nuotolinių studijų aplinkoje, tenkinant II lygio reikalavimus\nA study programme material created and uploaded in VMU distant learning environment, meeting the second level requirements","vnt.\nunit",0,10,{"$f":"G360*H360","v":0}]
["Tab.Nr.",{"$f":"VLOOKUP($E$2,Source!$A$5:$B$78,2,FALSE)","v":"lll030900000"},0,4720]
["Tab.Nr.",{"$f":"VLOOKUP($E$2,Source!$A$5:$B$78,2,FALSE)","v":"lll030900000"},0,4721,"Sukurtas, VDU nuotolinių studijų aplinkoje patalpintas ir atestuotas studijų dalykas mišrioms nuotolinėms studijoms, tenkinant II lygio reikalavimus\nA study programme created, uploaded in VMU distant learning environment and accredited for mixed distant studies, meeting the second level requirements","vnt.\nunit",0,20,{"$f":"G362*H362","v":0}]
["Tab.Nr.",{"$f":"VLOOKUP($E$2,Source!$A$5:$B$78,2,FALSE)","v":"lll030900000"},0,4722]
["Tab.Nr.",{"$f":"VLOOKUP($E$2,Source!$A$5:$B$78,2,FALSE)","v":"lll030900000"},0,4723,"Sukurtas, VDU nuotolinių studijų aplinkoje patalpintas ir atestuotas studijų dalykas nuotolinėms studijoms, tenkinant III lygio reikalavimus\nA study programme created, uploaded in VMU distant learning environment and accredited for distant studies, meeting the third level requirements","vnt.\nunit",0,25,{"$f":"G364*H364","v":0}]
["Tab.Nr.",{"$f":"VLOOKUP($E$2,Source!$A$5:$B$78,2,FALSE)","v":"lll030900000"},0,4724]
["Tab.Nr.",{"$f":"VLOOKUP($E$2,Source!$A$5:$B$78,2,FALSE)","v":"lll030900000"},0,4725,"Dėstymo medžiagos užsienio kalba parengimas magistro programai\nPreparing course materials in a foreign language for Master's Programme","vnt.\nunit",0,12,{"$f":"G366*H366","v":0}]
["Tab.Nr.",{"$f":"VLOOKUP($E$2,Source!$A$5:$B$78,2,FALSE)","v":"lll030900000"},0,4726]
["Tab.Nr.",{"$f":"VLOOKUP($E$2,Source!$A$5:$B$78,2,FALSE)","v":"lll030900000"},0,4727,"Dėstymo medžiagos užsienio kalba parengimas bakalauro programai\nPreparing course materials in a foreign language for Bachelor's Programme","vnt.\nunit",0,8,{"$f":"G368*H368","v":0}]
["Tab.Nr.",{"$f":"VLOOKUP($E$2,Source!$A$5:$B$78,2,FALSE)","v":"lll030900000"},0,4728]
["Tab.Nr.",{"$f":"VLOOKUP($E$2,Source!$A$5:$B$78,2,FALSE)","v":"lll030900000"},0,4729,"Dalyvavimas dėstytojų mainų programose (ne mažiau kaip 1 sav., paskaitų skaitymas kituose universitetuose)\nParticipation in teacher exchange programmes (not shorter than 1 week, delivering lectures in other universities)","vnt.\nunit",0,10,{"$f":"G370*H370","v":0}]
["Tab.Nr.",{"$f":"VLOOKUP($E$2,Source!$A$5:$B$78,2,FALSE)","v":"lll030900000"},0,4730]
["Tab.Nr.",{"$f":"VLOOKUP($E$2,Source!$A$5:$B$78,2,FALSE)","v":"lll030900000"},0,4731,"Dalyvavimas dėstytojų mainų programose (mažiau kaip 1 sav., paskaitų skaitymas kituose universitetuose)\nParticipation in teacher exchange programmes (shorter than 1 week, delivering lectures in other universities)","vnt.\nunit",0,5,{"$f":"G372*H372","v":0}]
["Tab.Nr.",{"$f":"VLOOKUP($E$2,Source!$A$5:$B$78,2,FALSE)","v":"lll030900000"},0,4732]
["Tab.Nr.",{"$f":"VLOOKUP($E$2,Source!$A$5:$B$78,2,FALSE)","v":"lll030900000"},0,4733,"Mokslinių diskusijų, edukacinių programų pravedimas (pranešimų skaitymas, praktinių užduočių organizavimas didaktinės kvalifikacijos kėlimo renginiuose) ir t.t.\nConducting science discussions, educational programmes (making presentations, organizing practical tasks in didactic training courses), etc.","vnt.\nunit",0,5,{"$f":"G374*H374","v":0}]
["Tab.Nr.",{"$f":"VLOOKUP($E$2,Source!$A$5:$B$78,2,FALSE)","v":"lll030900000"},0,4734]
["Tab.Nr.",{"$f":"VLOOKUP($E$2,Source!$A$5:$B$78,2,FALSE)","v":"lll030900000"},0,4735,"Vadovėliai vidurinių /profesinių mokyklų moksleiviams ir aukštųjų mokyklų studentams, kurie neįrašyti į mokslinės produkcijos lentelę\nCourse books for schoolchildren of high schools/professional schools and for students of higher education institutions (which are not included in a science production table) \n","aut. l.\nquire",0,5,{"$f":"G376*H376","v":0}]
["Tab.Nr.",{"$f":"VLOOKUP($E$2,Source!$A$5:$B$78,2,FALSE)","v":"lll030900000"},0,4736]
["Tab.Nr.",{"$f":"VLOOKUP($E$2,Source!$A$5:$B$78,2,FALSE)","v":"lll030900000"},0,4737,"Mokomosios knygos\nEducational books ","aut. l.\nquire",0,4,{"$f":"G378*H378","v":0}]
["Tab.Nr.",{"$f":"VLOOKUP($E$2,Source!$A$5:$B$78,2,FALSE)","v":"lll030900000"},0,4738]
["Tab.Nr.",{"$f":"VLOOKUP($E$2,Source!$A$5:$B$78,2,FALSE)","v":"lll030900000"},0,4739,"Studijų knygų parengimas (patvirtintų fakulteto taryboje)\nPreparing study books (approved by the faculty council)","aut. l.\nquire",0,3,{"$f":"G380*H380","v":0}]
["Tab.Nr.",{"$f":"VLOOKUP($E$2,Source!$A$5:$B$78,2,FALSE)","v":"lll030900000"},0,4740]
["Tab.Nr.",{"$f":"VLOOKUP($E$2,Source!$A$5:$B$78,2,FALSE)","v":"lll030900000"},0,4741,"Dalyvavimas seminaruose ar kursuose\nParticipation in seminars or courses","1 d.\na day",0,1,{"$f":"G382*H382","v":0}]
["Tab.Nr.",{"$f":"VLOOKUP($E$2,Source!$A$5:$B$78,2,FALSE)","v":"lll030900000"},0,4742]
[null,null,null,null,"Dėstymo veiklos darbo stažas VDU\nLecturing experience at VMU"]
["Tab.Nr.",{"$f":"VLOOKUP($E$2,Source!$A$5:$B$78,2,FALSE)","v":"lll030900000"},0,4744,"Nuo 3 iki 5 metų\nFrom 3 to 5 years",null,0,5,{"$f":"G385*H385","v":0}]
["Tab.Nr.",{"$f":"VLOOKUP($E$2,Source!$A$5:$B$78,2,FALSE)","v":"lll030900000"},0,4745]
["Tab.Nr.",{"$f":"VLOOKUP($E$2,Source!$A$5:$B$78,2,FALSE)","v":"lll030900000"},0,4746,"Nuo 5 iki 10 metų\nFrom 5 to 10 years",null,0,10,{"$f":"G387*H387","v":0}]
["Tab.Nr.",{"$f":"VLOOKUP($E$2,Source!$A$5:$B$78,2,FALSE)","v":"lll030900000"},0,4747]
["Tab.Nr.",{"$f":"VLOOKUP($E$2,Source!$A$5:$B$78,2,FALSE)","v":"lll030900000"},0,4748,"Virš 10 metų\nMore than 10 years",null,0,15,{"$f":"G389*H389","v":0}]
["Tab.Nr.",{"$f":"VLOOKUP($E$2,Source!$A$5:$B$78,2,FALSE)","v":"lll030900000"},0,4749]
[null,null,null,null,"Iš viso:\nTotal:",null,null,null,{"$f":"I346+I348+I350+I352+I354+I356+I358+I360+I362+I364+I366+I368+I370+I372+I374+I376+I378+I380+I382+I385+I387+I389","v":0}]
[null,null,null,null,"Iš viso:\nTotal:",null,null,null,{"$f":"I42+I69+I94+I105+I122+I161+I197+I231+I265+I308+I343+I391","v":0}]
[]
[]
[null,null,null,null,"Doktorantas\nPhD student      _________________________     _______________"]
[null,null,null,null,"                                Vardas, pavardė                         parašas\n                                Name, surname                         signature"]
[]
[null,null,null,null,"Doktoranto vadovas          \nSupervisor of PhD student __________________________     _______________"]
[null,null,null,null,"                                                Vardas, pavardė                             parašas\n                                                Name, surname                             signature"]

{"sheet":"Source","index":1,"n_rows":78,"n_cols":5,"rows_kept":78,"cut":false,"hidden":true,"merged":[]}
[null,null,null,"Nuo","Iki"]
["Metai",2015,null,0,1000]
[null,null,null,0,1]
["Katedros (centrai)","Kodai"]
["Anglų filologijos katedra","lll030900000","HMF"]
["Aplinkos tyrimų centras","lll050400000","GMF"]
["Aplinkotyros katedra","lll050500000","GMF"]
["Azijos studijų centras","lll080600000","PMDF"]
["Bažnytinės teisės katedra","lll070600000","KTF"]
["Bendrosios psichologijos katedra","lll090200000","SMF"]
["Biochemijos katedra","lll050800000","GMF"]
["Biologijos katedra","lll050300000","GMF"]
["Č. Milošo slavistikos centras","lll030700000","PMDF"]
["Dainavimo katedra","lll060100000","MA"]
["Džiazo katedra","lll060200000","MA"]
["Edukologijos katedra","lll090100000","SMF"]
["Ekonomikos katedra","lll020100000","EVF"]
["Energetinio saugumo tyrimų centras","ll2830000000","VDU"]
["Europos studijų centras","lll080500000","PMDF"]
["Filosofijos katedra","lll031000000","HMF"]
["Finansų katedra","lll020200000","EVF"]
["Fizikos katedra","lll050100000","GMF"]
["Fortepijono katedra","lll060300000","MA"]
["Germanistikos ir romanistikos katedra","lll032300000","HMF"]
["Inovatyvių studijų institutas","ll2600000000","ISC"]
["Instrumentinės muzikos katedra","lll060500000","MA"]
["Istorijos katedra","lll031100000","HMF"]
["Karjeros ir kompetencijų centras","ll2820000000","VDU"]
["Kauno Botanikos sodas","lll150000000","VDU"]
["Kauno istorijos centras","lll032200000","HMF"]
["Kokybės ir inovacijų centras","ll2590000000","SMF"]
["Kompiuterinės lingvistikos centras","lll030500000","HMF"]
["Krikščioniško ugdymo centras","lll071000000","KTF"]
["Kultūros tyrimų centras","lll031300000","HMF"]
["Kultūrų studijų ir etnologijos katedra","lll032400000","HMF"]
["Letonikos centras","lll081200000","HMF"]
["Lietuvių išeivijos institutas","lll140000000","HMF"]
["Lietuvių kalbos katedra","lll030100000","HMF"]
["Lietuvių literatūros katedra","lll030200000","HMF"]
["LKB istorijos centras","lll070501000","KTF"]
["Marketingo katedra","lll020600000","EVF"]
["Matematikos ir statistikos katedra","lll040200000","IF"]
["Menotyros katedra","lll160100000","MF"]
["Muzikos teorijos ir pedagogikos katedra","lll060400000","MA"]
["Pilietinės tolerancijos centras","lll031400000","PMDF"]
["Politologijos katedra","lll080100000","PMDF"]
["Privatinės teisės katedra","lll102000000","TF"]
["Prof. B.Vaškelio literatūrinės komparatyvistikos centras","lll031600000","HMF"]
["Profesinio rengimo studijų centras","lll090500000","SMF"]
["Psichologijos klinika","lll090800000","SMF"]
["Regionistikos katedra","lll080700000","PMDF"]
["Religijos studijų katedra","lll070100000","KTF"]
["Santuokos ir šeimos studijų centras","lll070900000","KTF"]
["Sistemų analizės katedra","lll040600000","IF"]
["Socialinės antropologijos centras","lll090700000","SMF"]
["Socialinės ir politinės teorijos katedra","lll081000000","PMDF"]
["Socialinio darbo katedra","lll110100000","SMF"]
["Socialinio darbo kompetencijų centras","lll110500000","SMF -> SGI"]
["Socialinių tyrimų centras","lll080400000","SMF"]
["Sociologijos katedra","lll090300000","SMF"]
["Sporto centras","ll2080000000","VDU"]
["Statistinių tyrimų centras","lll040300000","IF"]
["Studijų kokybės centras","ll2340000000","VDU"]
["Šiuolaikinių menų katedra","lll160400000","MF"]
["Šiuolaikinių menų katedra","lll160400000","MA"]
["Švietimo studijų centras","lll090400000","SMF"]
["Taikomosios informatikos katedra","lll040100000","IF"]
["Tarpkultūrinės komunikacijos ir daugiakalbystės tyrimų centras","lll081100000","PMDF"]
["Teatrologijos katedra","lll160200000","MF"]
["Teologijos katedra","lll070200000","KTF"]
["Teorinės psichologijos katedra","lll090900000","SMF"]
["Tęstinių studijų centras","lll091100000","VDU"]
["Užsienio kalbų institutas","lll170000000","UKI"]
["Vadybos katedra","lll020300000","EVF"]
["Verslo konsultavimo ir podiplominių studijų centras","lll020400000","EVF"]
["Viešojo administravimo katedra","lll080300000","PMDF"]
["Viešosios komunikacijos katedra","lll080900000","PMDF"]
["Viešosios teisės katedra","lll103000000","TF"]